{"text_format":"2","workbook":"xlsx","n_sheets":3,"sheets":["사옥신재생에너지생산현황","사전정보공표 항목(명칭변경_최종)","사전정보공표 항목(명칭변경전)"],"not_rendered":{"charts":0,"images":0,"macros":0,"external_links":0,"defined_names":7,"comments":0,"pivot_tables":0},"unopened":[],"bounds":{"document_bytes":16777216,"sheet_cells":100000,"run_cost":"one","rows_first":2000,"rows_last":500,"rows_between":2000,"halvings":0,"cell_chars":16384,"cell_head_chars":4096},"cells_cut":0,"cells_raw":0,"read":"whole","date_system":"1900"}

{"sheet":"사옥신재생에너지생산현황","index":0,"n_rows":21,"n_cols":7,"rows_kept":21,"cut":false,"hidden":false,"merged":[[0,1,0,6],[2,1,3,1],[2,2,2,4],[2,5,3,5],[2,6,3,6]]}
[null,"2022년도 사옥 신재생 에너지 생산현황"]
[]
[null,"생산기간","신재생에너지 생산량(MWh)",null,null,"신재생에너지\n사용비율(%)","비고"]
[null,null,"지열발전","태양광발전","소계"]
[null,"1 월",522,192.94800000000001,{"$f":"SUM(C5:D5)","v":714.94799999999998},36]
[null,"2 월",507,221.279,{"$f":"SUM(C6:D6)","v":728.279},40]
[null,"3 월",278,217.084,495.084,33]
[null,"1/4 합계",{"$f":"SUM(C5:C7)","v":1307},{"$f":"SUM(D5:D7)","v":631.31099999999992},1938.3109999999999,36.33]
[null,"4 월",40,259.89400000000001,299.89400000000001,27]
[null,"5 월",142,298.27199999999999,440.27199999999999,33]
[null,"6 월",415,228.792,643.79200000000003,34]
[null,"2/4 합계",{"$f":"SUM(C9:C11)","v":597},{"$f":"SUM(D9:D11)","v":786.95799999999997},1383.9580000000001,31.33]
[null,"7 월",517,210.47,727.47,32]
[null,"8 월",469,176.476,645.476,29]
[null,"9 월",290,191.60300000000001,481.60300000000001,30]
[null,"3/4 합계",{"$f":"SUM(C13:C15)","v":1276},{"$f":"SUM(D13:D15)","v":578.54899999999998},1854.549,30.33]
[null,"10 월",30,218.214,248.214,21]
[null,"11 월",166,177.279,343.279,24]
[null,"12 월",472,150.93199999999999,622.93200000000002,31]
[null,"4/4 합계",{"$f":"SUM(C17:C19)","v":668},{"$f":"SUM(D17:D19)","v":546.42499999999995},1214.425,25.33]
[null,"총계",{"$f":"+C8+C12+C16+C20","v":3848},{"$f":"+D8+D12+D16+D20","v":2543.2429999999995},6391.2430000000004,0.31]

{"sheet":"사전정보공표 항목(명칭변경_최종)","index":1,"n_rows":220,"n_cols":15,"rows_kept":220,"cut":false,"hidden":true,"merged":[[0,0,0,12]]}
["■ 사전정보공표 항목 및 담당부서"]
["2019.10.1. 기준"]
["연번","기관명","신규 담당 부서"," BRM 1레벨","BRM 2레벨","BRM 3레벨","공표목록","공표항목","항목분류","공표주기","공표방법","자율공시 해당여부","유형"]
[1,"한국전력기술","감사실","산업 ·중소기업","에너지 및 자원개발","전력산업경쟁력강화및전력수급안정","감사전문성 향상 추진 현황","감사인명, 감사전문 교육이수시간","감사∙윤리","1년","홈페이지","해당"]
[2,"한국전력기술","감사실","산업 ·중소기업","에너지 및 자원개발","전력산업경쟁력강화및전력수급안정","옴브즈만 운영 현황","개최일시, 회의내용, 회의결과, 건의사항에 대한 조치결과","감사∙윤리","1년","홈페이지","­"]
[3,"한국전력기술","감사실","산업 ·중소기업","에너지 및 자원개발","전력산업경쟁력강화및전력수급안정","감사계획","유형(종합/특별 등), 대상(본부,부서 등), 감사일정, 감사반편성, 중점 감사사항","감사∙윤리","1년","홈페이지","­"]
[4,"한국전력기술","감사실","산업 ·중소기업","에너지 및 자원개발","전력산업경쟁력강화및전력수급안정","일상감사 현황","일상감사 대상, 처리절차, 관련 법규","감사∙윤리","1년","홈페이지","­"]
[5,"한국전력기술","감사실","산업 ·중소기업","에너지 및 자원개발","전력산업경쟁력강화및전력수급안정","공직기강 감찰결과","시기별 감찰개요, 감찰결과(대상, 내용, 위법사항 등), 조치결과","감사∙윤리","1년","홈페이지","­"]
[6,"한국전력기술","감사실","산업 ·중소기업","에너지 및 자원개발","전력산업경쟁력강화및전력수급안정","부패행위 신고 및 처리결과","신고목록 및 내용, 조사결과(내용, 위법사항 등), 조치결과","감사∙윤리","1년","홈페이지","­"]
[7,"한국전력기술","감사실","산업 ·중소기업","에너지 및 자원개발","전력산업경쟁력강화및전력수급안정","범죄유형별 형사처분 임직원 현황","범죄유형, 범죄내용, 기소여부, 재판결과, 징계내역","감사∙윤리","1년","홈페이지","­"]
[8,"한국전력기술","감사실","산업 ·중소기업","에너지 및 자원개발","전력산업경쟁력강화및전력수급안정","고충·다수 민원관련 조사 및 처리결과","유형(고충, 다수), 민원목록 및 내용, 조사결과(내용, 위법사항 등), 민원처리 결과, 조치결과","감사∙윤리","1년","홈페이지","­"]
[9,"한국전력기술","감사실","산업 ·중소기업","에너지 및 자원개발","전력산업경쟁력강화및전력수급안정","반부패 경쟁력 추진 현황","반부패 경쟁력 평가 추진계획, 반부패 추진 시책","감사∙윤리","1년","홈페이지","­"]
[10,"한국전력기술","감사실","산업 ·중소기업","에너지 및 자원개발","전력산업경쟁력강화및전력수급안정","반부패 경쟁력평가 결과","조사대상, 기간, 평가부문(주요 평가내용), 평가결과(등급)","감사∙윤리","1년","홈페이지","­"]
[11,"한국전력기술","감사실","산업 ·중소기업","에너지 및 자원개발","전력산업경쟁력강화및전력수급안정","종합청렴도 평가","권익위 종합청렴도 평가결과","감사∙윤리","1년","홈페이지","­"]
[12,"한국전력기술","감사실","산업 ·중소기업","에너지 및 자원개발","전력산업경쟁력강화및전력수급안정","청렴도 조사 결과","조사대상, 기간, 설문대상, 방법, 측정업무, 표본수, 측정내용, 평가결과(점수, 평균, 등급)","감사∙윤리","1년","홈페이지","­"]
[13,"한국전력기술","감사실","산업 ·중소기업","에너지 및 자원개발","전력산업경쟁력강화및전력수급안정","재산등록","재산등록의무자 기준 및 연 재산등록자 인원현황","감사∙윤리","1년","홈페이지","­"]
[14,"한국전력기술","감사실","산업 ·중소기업","에너지 및 자원개발","전력산업경쟁력강화및전력수급안정","민원처리 절차","청원, 진정민원 접수 및 처리안내","감사∙윤리","1년","홈페이지","­"]
[15,"한국전력기술","미래전략연구소","산업 ·중소기업","에너지 및 자원개발","전력산업경쟁력강화및전력수급안정","단위 정부과제 목록","단위 정부과제명, 분류체계, 단위과제 설명, 부서명, 보존기간, 보존기간 책정사유","기술∙교육∙품질","반기","홈페이지","­"]
[16,"한국전력기술","미래전략연구소","산업 ·중소기업","에너지 및 자원개발","전력산업경쟁력강화및전력수급안정","국내학술활동참가현황","학술명, 학술기간, 학술기관","기술∙교육∙품질","반기","홈페이지","해당"]
[17,"한국전력기술","미래전략연구소","산업 ·중소기업","에너지 및 자원개발","전력산업경쟁력강화및전력수급안정","주요 연구개발과제 완료 현황","과제명, 과제내용, 수행기간, 총연구비, 연구책임자","기술∙교육∙품질","1년","홈페이지","­"]
[18,"한국전력기술","미래전략연구소","산업 ·중소기업","에너지 및 자원개발","전력산업경쟁력강화및전력수급안정","국비보조 및 정부보조사업 현황","사업명, 사업내용, 항목별 예산 내역","기술∙교육∙품질","1년","홈페이지","­"]
[19,"한국전력기술","미래전략연구소","산업 ·중소기업","에너지 및 자원개발","전력산업경쟁력강화및전력수급안정","논문발표 현황","최근 3년간 국내외 논문발표 현황 총괄표(연도별, 부서별, 발표건수)","기술∙교육∙품질","1년","홈페이지","해당"]
[20,"한국전력기술","미래전략연구소","산업 ·중소기업","에너지 및 자원개발","전력산업경쟁력강화및전력수급안정","스페셜리스트  운영 현황","스페셜리스트 전문분야 및 직무내역","인사∙총무∙회계","1년","홈페이지","해당"]
[21,"한국전력기술","미래전략연구소","산업 ·중소기업","에너지 및 자원개발","전력산업경쟁력강화및전력수급안정","산학협력 현황","산학연관 MOU 체결 현황","홍보∙대외협력","반기","홈페이지","­"]
[22,"한국전력기술","미래전략연구소","산업 ·중소기업","에너지 및 자원개발","전력산업경쟁력강화및전력수급안정","기록물 생산 현황 및 폐기 현황","생산현황(생산연도별, 보존기간별(영구, 준영구, 30년, 10년, 5년, 3년, 1년), 문서 생산건수), 폐기현황(생산연도, 보존기간, 문서 폐기건수)","인사∙총무∙회계","1년","홈페이지","­"]
[23,"한국전력기술","미래전략연구소","산업 ·중소기업","에너지 및 자원개발","전력산업경쟁력강화및전력수급안정","시청각기록물 보유현황","생산부서, 생산연도, 보존기간, 기록물제목","정보화","1년","홈페이지","­"]
[24,"한국전력기술","미래전략연구소","산업 ·중소기업","에너지 및 자원개발","전력산업경쟁력강화및전력수급안정","정기간행물 등록현황","명칭, 발행인, 등록일자, 발행주기","정보화","1년","홈페이지","­"]
[25,"한국전력기술","미래전략연구소","산업 ·중소기업","에너지 및 자원개발","전력산업경쟁력강화및전력수급안정","기술정보실 보유도서 목록 현황","전문도서명, 정기간행물명, 발행처, 저자, 발행년도","정보화","반기","홈페이지","해당"]
[26,"한국전력기술","미래전략연구소","산업 ·중소기업","에너지 및 자원개발","전력산업경쟁력강화및전력수급안정","기술정보실 DB 검색 서비스 현황","가입중인 외부 DB 명, 계약기관, DB소개","정보화","1년","홈페이지","해당"]
[27,"한국전력기술","미래전략연구소","산업 ·중소기업","에너지 및 자원개발","전력산업경쟁력강화및전력수급안정","전문도서 보유목록 현황","전문도서명, 분야, 발행처, 저자, 출판년도","정보화","1년","홈페이지","해당"]
[28,"한국전력기술","미래전략연구소","산업 ·중소기업","에너지 및 자원개발","전력산업경쟁력강화및전력수급안정","열린도서관 교양 도서 현황","교양서명, 분야, 발행처, 저자, 출판년도","정보화","1년","홈페이지","해당"]
[29,"한국전력기술","미래전략연구소","산업 ·중소기업","에너지 및 자원개발","전력산업경쟁력강화및전력수급안정","CODE & STANDARD 운영현황","CODE & STANDARD명, 분야, 발행처, 출판년도","정보화","1년","홈페이지","해당"]
[30,"한국전력기술","미래전략연구소","산업 ·중소기업","에너지 및 자원개발","전력산업경쟁력강화및전력수급안정","기술정보실 국내 DB 구독서비스 현황","가입중인 국내 DB명, 계약기관, DB소개","정보화","1년","홈페이지","해당"]
[31,"한국전력기술","미래전략연구소","산업 ·중소기업","에너지 및 자원개발","전력산업경쟁력강화및전력수급안정","전자저널 구독현황","구독중인 전자저널명, 계약기관, 전자저널 소개","정보화","1년","홈페이지","해당"]
[32,"한국전력기술","미래전략연구소","산업 ·중소기업","에너지 및 자원개발","전력산업경쟁력강화및전력수급안정","기술정보실 해외 DB 구독 서비스 현황","가입중인 해외 DB 명, 계약기관, DB소개","정보화","1년","홈페이지","해당"]
[33,"한국전력기술","미래전략연구소","산업 ·중소기업","에너지 및 자원개발","전력산업경쟁력강화및전력수급안정","비공개기록물 공개 재분류 목록","생산기관, 생산연도, 보존기간, 기록물철명, 기록물건명, 재분류 의견","정보화","1년","홈페이지","­"]
[34,"한국전력기술","미래전략연구소","산업 ·중소기업","에너지 및 자원개발","전력산업경쟁력강화및전력수급안정","빅데이터활용 현황 및 계획","빅데이터활용 현황 및 계획(정책, 전략, 홍보, 교육 등) ","정보화","반기","홈페이지","­",null,null,"ICT솔루션실"]
[35,"한국전력기술","미래전략연구소","산업 ·중소기업","에너지 및 자원개발","전력산업경쟁력강화및전력수급안정","정보시스템 운영 현황","시스템명, 시스템개요","정보화","1년","홈페이지","해당","지원업무"]
[36,"한국전력기술","품질안전환경처","산업 ·중소기업","에너지 및 자원개발","전력산업경쟁력강화및전력수급안정","원자력 안전점검의 날 이행실적(A/E)","안전세미나 주제, 발표자, 참석인원, 사진 ","기술∙교육∙품질","1년","홈페이지","해당"]
[37,"한국전력기술","품질안전환경처","산업 ·중소기업","에너지 및 자원개발","전력산업경쟁력강화및전력수급안정","원자력 안전점검의 날 이행실적(NSSS)","안전세미나 주제, 발표자, 참석인원, 사진 ","기술∙교육∙품질","1년","홈페이지","해당"]
[38,"한국전력기술","품질안전환경처","산업 ·중소기업","에너지 및 자원개발","전력산업경쟁력강화및전력수급안정","품질관련 자격인증 보유현황","인증서, 분야, 최초취득일, 유효기간, 갱신주기","기술∙교육∙품질","1년","홈페이지","해당"]
[39,"한국전력기술","품질안전환경처","산업 ·중소기업","에너지 및 자원개발","전력산업경쟁력강화및전력수급안정","품질경영시스템 체계","품질보증/품질경영 문서화 체계도 등","기술∙교육∙품질","1년","홈페이지","해당"]
[40,"한국전력기술","품질안전환경처","산업 ·중소기업","에너지 및 자원개발","전력산업경쟁력강화및전력수급안정","안전환경경영시스템 체계","안전, 보건, 환경 문서화 체계도 등","기술∙교육∙품질","1년","홈페이지","해당"]
[41,"한국전력기술","품질안전환경처","산업 ·중소기업","에너지 및 자원개발","전력산업경쟁력강화및전력수급안정","안전보건환경 관련 자격인증 보유현황","인증서, 분야, 최초취득일, 유효기간, 갱신주기","기술∙교육∙품질","1년","홈페이지","해당"]
[42,"한국전력기술","품질안전환경처","산업 ·중소기업","에너지 및 자원개발","전력산업경쟁력강화및전력수급안정","하도급업체 품질감사현황","감사 수행 건수, 감사 수검 업체","기술∙교육∙품질","1년","홈페이지","해당"]
[43,"한국전력기술","품질안전환경처","산업 ·중소기업","에너지 및 자원개발","전력산업경쟁력강화및전력수급안정","기관 관련 주요 법령\n- 품질/안전/환경 관련 주요법령","법, 시행령, 시행규칙 등","법무∙노무","1년","홈페이지","­"]
[44,"한국전력기술","인재개발교육원","산업 ·중소기업","에너지 및 자원개발","전력산업경쟁력강화및전력수급안정","이공계 대학생 대상 Power Engineering School Camp 실시","교육일정, 교육과목, 대상인원, 참여학교","기술∙교육∙품질","반기","홈페이지","해당"]
[45,"한국전력기술","인재개발교육원","산업 ·중소기업","에너지 및 자원개발","전력산업경쟁력강화및전력수급안정","전력그룹사 대상 발전소 설계기술 수탁교육 실시","교육일정, 교육과목, 대상인원, 회사","기술∙교육∙품질","반기","홈페이지","해당"]
[46,"한국전력기술","인재개발교육원","산업 ·중소기업","에너지 및 자원개발","전력산업경쟁력강화및전력수급안정","협력 중소기업 대상 맞춤형 엔지니어링 기술교육 실시","교육일정, 교육과목, 대상인원, 참여회사","기술∙교육∙품질","반기","홈페이지","해당"]
[47,"한국전력기술","인재개발교육원","산업 ·중소기업","에너지 및 자원개발","전력산업경쟁력강화및전력수급안정","기술전문교육 기본과정 실시","교육일정, 교육대상","기술∙교육∙품질","1년","홈페이지","해당"]
[48,"한국전력기술","인재개발교육원","산업 ·중소기업","에너지 및 자원개발","전력산업경쟁력강화및전력수급안정","기술전문교육 성숙과정 실시","교육일정, 교육대상","기술∙교육∙품질","1년","홈페이지","해당"]
[49,"한국전력기술","인재개발교육원","산업 ·중소기업","에너지 및 자원개발","전력산업경쟁력강화및전력수급안정","기술전문교육 고도과정 실시","교육일정, 교육대상","기술∙교육∙품질","1년","홈페이지","해당"]
[50,"한국전력기술","인재개발교육원","산업 ·중소기업","에너지 및 자원개발","전력산업경쟁력강화및전력수급안정","신입사원 직무입문교육 실시","교육일정, 교육대상","기술∙교육∙품질","1년","홈페이지","해당"]
[51,"한국전력기술","인재개발교육원","산업 ·중소기업","에너지 및 자원개발","전력산업경쟁력강화및전력수급안정","경력사원 직무입문교육 실시","교육일정, 교육대상","기술∙교육∙품질","1년","홈페이지","해당"]
[52,"한국전력기술","기획처","산업 ·중소기업","에너지 및 자원개발","전력산업경쟁력강화및전력수급안정","정보공개 청구 및 처리현황","청구현황(방법별, 공개여부 결정기간별, 기타청구처리 건수), 처리현황(전부공개, 부분공개, 비공개, 취하 등 건수)","기획∙전략","반기","홈페이지","­"]
[53,"한국전력기술","기획처","산업 ·중소기업","에너지 및 자원개발","전력산업경쟁력강화및전력수급안정","공공데이터 개방사업 현황","사업명, 사업목적, 사업내용, 추진현황, 관련예산, 담당부서","기획∙전략","반기","홈페이지","­"]
[54,"한국전력기술","기획처","산업 ·중소기업","에너지 및 자원개발","전력산업경쟁력강화및전력수급안정","공공데이터 개방목록","공공데이터 보유목록, 책임관, 실무담당자, 전화번호","기획∙전략","반기","홈페이지","­"]
[55,"한국전력기술","기획처","산업 ·중소기업","에너지 및 자원개발","전력산업경쟁력강화및전력수급안정","회사 미션 및 비전","회사 미션 및 비전","기획∙전략","1년","홈페이지","해당"]
[56,"한국전력기술","기획처","산업 ·중소기업","에너지 및 자원개발","전력산업경쟁력강화및전력수급안정","본부별 주요 계획\n- 경영관리본부 주요 계획","본부명, 사업개요, 주요내용, 주요 추진계획","기획∙전략","1년","홈페이지","­"]
[57,"한국전력기술","기획처","산업 ·중소기업","에너지 및 자원개발","전력산업경쟁력강화및전력수급안정","중장기 경영전략","중장기 경영전략","기획∙전략","1년","홈페이지","­"]
[58,"한국전력기술","기획처","산업 ·중소기업","에너지 및 자원개발","전력산업경쟁력강화및전력수급안정","정부 경영실적 평가 결과","기관평가(평가등급, 전년도 평가등급 및 평가등급 변경 사유),  기관장 평가등급(평가등급, 전년도 평가등급 및 평가등급 변경사유), 감사 평가등급(평가등급, 전년도 평가등급 및 평가등급 변경사유)","기획∙전략","1년","홈페이지","­"]
[59,"한국전력기술","기획처","산업 ·중소기업","에너지 및 자원개발","전력산업경쟁력강화및전력수급안정","각종 위원회 구성 및 운영","위원회명,  위원회 구성(위원수 등), 설치목적, 설치근거 ","기획∙전략","1년","홈페이지","­"]
[60,"한국전력기술","기획처","산업 ·중소기업","에너지 및 자원개발","전력산업경쟁력강화및전력수급안정","각종 위원회 심의결과","위원회명, 회의개최 일자, 참석 위원, 심의안건, 심의결과","기획∙전략","1년","홈페이지","­"]
[61,"한국전력기술","기획처","산업 ·중소기업","에너지 및 자원개발","전력산업경쟁력강화및전력수급안정","기관 업무보고 자료","일반현황, 주요 업무계획","기획∙전략","1년","홈페이지","­"]
[62,"한국전력기술","기획처","산업 ·중소기업","에너지 및 자원개발","전력산업경쟁력강화및전력수급안정","소속기관 경영실적평가 결과","소속기관명, 평가기준(평가지표, 배점, 평가방법), 평가결과, 지적사항, 조치계획 및 조치결과 ","기획∙전략","1년","홈페이지","­"]
[63,"한국전력기술","기획처","산업 ·중소기업","에너지 및 자원개발","전력산업경쟁력강화및전력수급안정","사규 현황","명칭, 제정일자, 최종공포 일자, 소관부서장, 연락처, 규정내용","기획∙전략","1년","홈페이지","­"]
[64,"한국전력기술","기획처","산업 ·중소기업","에너지 및 자원개발","전력산업경쟁력강화및전력수급안정","정보공개 공개 및 비공개 목록","공개목록(청구제목, 청구내용, 담당부서), 비공개 목록(청구제목, 청구내용, 비공개사유, 담당부서)","기획∙전략","1년","홈페이지","­"]
[65,"한국전력기술","기획처","산업 ·중소기업","에너지 및 자원개발","전력산업경쟁력강화및전력수급안정","정보공개 분야 국민의견 수렴 및 만족도 조사 결과","분야(사전정보공표, 정보공개 청구 및 답변 등), 조사기간, 조사대상, 조사결과, 의견수렴 결과 및 개선 내용","기획∙전략","1년","홈페이지","­"]
[66,"한국전력기술","기획처","산업 ·중소기업","에너지 및 자원개발","전력산업경쟁력강화및전력수급안정","수입 및 지출현황","기관 수입 및 지출실적 현황","기획∙전략","1년","홈페이지","해당"]
[67,"한국전력기술","기획처","산업 ·중소기업","에너지 및 자원개발","전력산업경쟁력강화및전력수급안정","사업부서 운영현황","본부/단별 주요 사업부서 운영 목록","기획∙전략","1년","홈페이지","해당"]
[68,"한국전력기술","기획처","산업 ·중소기업","에너지 및 자원개발","전력산업경쟁력강화및전력수급안정","방만경영 정상화 계획","방만경영 개선계획(기존 및 추가과제), 이행완료 여부 공개","기획∙전략","1년","홈페이지","해당"]
[69,"한국전력기술","기획처","산업 ·중소기업","에너지 및 자원개발","전력산업경쟁력강화및전력수급안정","임원현황","성명, 생년, 학력, 주요경력, 임기 등","기획∙전략","1년","홈페이지","해당"]
[70,"한국전력기술","기획처","산업 ·중소기업","에너지 및 자원개발","전력산업경쟁력강화및전력수급안정","정보공개 운영현황","연도별 정보공개 처리건수, 공개비율","기획∙전략","1년","홈페이지","해당"]
[71,"한국전력기술","기획처","산업 ·중소기업","에너지 및 자원개발","전력산업경쟁력강화및전력수급안정","알리오 공시벌점 현황","기재부 알리오 공시 점검결과 ","기획∙전략","1년","홈페이지","해당"]
[72,"한국전력기술","기획처","산업 ·중소기업","에너지 및 자원개발","전력산업경쟁력강화및전력수급안정","중기인력운용 계획","수립개요, 부문별 인력계획","인사∙총무∙회계","1년","홈페이지","­"]
[73,null,"기획처","산업 ·중소기업","에너지 및 자원개발","전력산업경쟁력강화및전력수급안정","회사 주요사업 현황","회사 주요사업 현황(사업명, 발주처, 사업기간, 역무, 예산 등)","기획∙전략","1년","홈페이지"]
[74,"한국전력기술","경영지원처","산업 ·중소기업","에너지 및 자원개발","전력산업경쟁력강화및전력수급안정","부서장 업무추진비성 경비 사용내역","직위, 사용일자, 사용금액, 사용목적, 참석대상","인사∙총무∙회계","1년","홈페이지","­"]
[75,"한국전력기술","경영지원처","산업 ·중소기업","에너지 및 자원개발","전력산업경쟁력강화및전력수급안정","임원(기관장 제외) 업무추진비성 경비 사용내역","직위, 사용일자, 사용금액, 사용목적, 참석대상","인사∙총무∙회계","매월","홈페이지","­"]
[76,"한국전력기술","경영지원처","산업 ·중소기업","에너지 및 자원개발","전력산업경쟁력강화및전력수급안정","기관장 업무추진비성 경비 사용내역","직위, 사용일자, 사용금액, 사용목적, 참석대상","인사∙총무∙회계","매월","홈페이지","해당"]
[77,"한국전력기술","경영지원처","산업 ·중소기업","에너지 및 자원개발","전력산업경쟁력강화및전력수급안정","차량보유현황","차종, 차명, 구입년도, 사용용도","인사∙총무∙회계","1년","홈페이지","해당"]
[78,"한국전력기술","경영지원처","산업 ·중소기업","에너지 및 자원개발","전력산업경쟁력강화및전력수급안정","청사현황 및 시설사용 안내","청사현황(연면적, 층수, 주요시설물, 주차대수, 용도), 시설사용(시설명, 사용가능 시간, 사용료) ","인사∙총무∙회계","1년","홈페이지","­"]
[79,"한국전력기술","경영지원처","산업 ·중소기업","에너지 및 자원개발","전력산업경쟁력강화및전력수급안정","청사 에너지관리 현황","전기, 수도, 가스 등 에너지 사용량, 전년 동월 대비 사용량과 비교, 사용 증감내역, 증감사유","인사∙총무∙회계","1년","홈페이지","­"]
[80,"한국전력기술","경영지원처","산업 ·중소기업","에너지 및 자원개발","전력산업경쟁력강화및전력수급안정","수익시설물 및 이용료 현황","시설물 종류, 명칭, 소재지, 이용료 산정기준, 이용취소 절차 및 환급금액 등","인사∙총무∙회계","1년","홈페이지","­"]
[81,"한국전력기술","경영지원처","산업 ·중소기업","에너지 및 자원개발","전력산업경쟁력강화및전력수급안정","주요자산관리 현황","자산명, 취득일자, 취득원가, 잔존가액, 처분현황 ","인사∙총무∙회계","1년","홈페이지","­"]
[82,"한국전력기술","경영지원처","산업 ·중소기업","에너지 및 자원개발","전력산업경쟁력강화및전력수급안정","사옥 시설물 현황","사옥 시설물 현황","인사∙총무∙회계","1년","홈페이지","해당"]
[83,"한국전력기술","경영지원처","산업 ·중소기업","에너지 및 자원개발","전력산업경쟁력강화및전력수급안정","사옥관리 용역 현황","사옥관리 용역 현황","인사∙총무∙회계","1년","홈페이지","해당"]
[84,"한국전력기술","경영지원처","산업 ·중소기업","에너지 및 자원개발","전력산업경쟁력강화및전력수급안정","사옥 조형물 설치 현황","사옥 조형물 설치 현황","인사∙총무∙회계","1년","홈페이지","해당"]
[85,"한국전력기술","경영지원처","산업 ·중소기업","에너지 및 자원개발","전력산업경쟁력강화및전력수급안정","사옥 신재생에너지 생산 현황","사옥 신재생에너지 생산 현황","인사∙총무∙회계","분기","홈페이지","해당"]
[86,"한국전력기술","경영지원처","산업 ·중소기업","에너지 및 자원개발","전력산업경쟁력강화및전력수급안정","종전부동산(사옥) 매각 현황","종전부동산(사옥) 매각 현황","인사∙총무∙회계","분기","홈페이지","해당","지원업무"]
[87,"한국전력기술","경영지원처","산업 ·중소기업","에너지 및 자원개발","전력산업경쟁력강화및전력수급안정","3년간 요약 재무상태표","3년간 요약 재무상태표","인사∙총무∙회계","1년","홈페이지","해당","지원업무"]
[88,"한국전력기술","경영지원처","산업 ·중소기업","에너지 및 자원개발","전력산업경쟁력강화및전력수급안정","3년간 요약 손익계산서","3년간 요약 손익계산서","인사∙총무∙회계","1년","홈페이지","해당","지원업무"]
[89,"한국전력기술","경영지원처","산업 ·중소기업","에너지 및 자원개발","전력산업경쟁력강화및전력수급안정","세금납부 현항","법인세 납부현황(과세표준, 납부세액), 부가가치세 납부현황(과세표준, 매출세액, 매입세액, 납부세액), 종합부동산세 납부현황(과세표준, 납부세액), 지방세 납부현황(지방세 세목별 납부실적) ","인사∙총무∙회계","1년","홈페이지","­","지원업무"]
[90,"한국전력기술","경영지원처","산업 ·중소기업","에너지 및 자원개발","전력산업경쟁력강화및전력수급안정","법인카드 관리 현황","구분(본사, 사업소 등), 발급개수, 사용제한 시간 및 업종","인사∙총무∙회계","1년","홈페이지","­","지원업무"]
[91,"한국전력기술","경영지원처","산업 ·중소기업","에너지 및 자원개발","전력산업경쟁력강화및전력수급안정","법인카드 포인트 발생 및 사용내역","법인카드 포인트 발생내역(전년도 이월금액, 당해연도 발생금액, 합계금액), 사용내역(일자, 사용금액, 사용처 등)","인사∙총무∙회계","1년","홈페이지","­","지원업무"]
[92,"한국전력기술","경영지원처","산업 ·중소기업","에너지 및 자원개발","전력산업경쟁력강화및전력수급안정","주주총회 개최 현황","주주총회 개최일, 주주총회 안건, 주주총회 결과","인사∙총무∙회계","1년","홈페이지","해당","지원업무"]
[93,"한국전력기술","경영지원처","산업 ·중소기업","에너지 및 자원개발","전력산업경쟁력강화및전력수급안정","제출기관별 공시 실시 현황","한국거래소 및 금융감독원 대상 공시 제출 현황","인사∙총무∙회계","1년","홈페이지","해당","지원업무"]
[94,"한국전력기술","인사노무처","산업 ·중소기업","에너지 및 자원개발","전력산업경쟁력강화및전력수급안정","3년간 신규채용 현황","인원수, 비율","인사∙총무∙회계","반기","홈페이지","해당"]
[95,"한국전력기술","인사노무처","산업 ·중소기업","에너지 및 자원개발","전력산업경쟁력강화및전력수급안정","임원 해외출장 내역","직위, 출장목적, 출장기간, 출장결과 보고서","인사∙총무∙회계","반기","홈페이지","­"]
[96,"한국전력기술","인사노무처","산업 ·중소기업","에너지 및 자원개발","전력산업경쟁력강화및전력수급안정","3년간 직종별 인력현황","인원수, 비율","인사∙총무∙회계","반기","홈페이지","해당"]
[97,"한국전력기술","인사노무처","산업 ·중소기업","에너지 및 자원개발","전력산업경쟁력강화및전력수급안정","3년간 학력별 인력현황","인원수, 비율","인사∙총무∙회계","반기","홈페이지","해당"]
[98,"한국전력기술","인사노무처","산업 ·중소기업","에너지 및 자원개발","전력산업경쟁력강화및전력수급안정","비위면직자 취업제한 제도","제도취지, 취업제한 범위 및 내용 등","인사∙총무∙회계","1년","홈페이지","­"]
[99,"한국전력기술","인사노무처","산업 ·중소기업","에너지 및 자원개발","전력산업경쟁력강화및전력수급안정","채용통계","채용개요, 채용인원, 지원인원, 경쟁률","인사∙총무∙회계","1년","홈페이지","­"]
[100,"한국전력기술","인사노무처","산업 ·중소기업","에너지 및 자원개발","전력산업경쟁력강화및전력수급안정","직원 초과근무수당 지급 내역","부서명, 초과근무시간, 초과근무수당 지급액, 1인당 평균 초과근무시간, 1인당 초과근무수당 지급액 ","인사∙총무∙회계","1년","홈페이지","­"]
[101,"한국전력기술","인사노무처","산업 ·중소기업","에너지 및 자원개발","전력산업경쟁력강화및전력수급안정","3년간 자격별 인력현황","인원수, 비율","인사∙총무∙회계","반기","홈페이지","해당"]
[102,"한국전력기술","인사노무처","산업 ·중소기업","에너지 및 자원개발","전력산업경쟁력강화및전력수급안정","항공마일리지 발생 및 사용 내역","항공마일리지 발생내역(전년도 이월내역, 당해연도 발생내역, 발생내역 합계), 사용내역","인사∙총무∙회계","1년","홈페이지","­"]
[103,"한국전력기술","인사노무처","산업 ·중소기업","에너지 및 자원개발","전력산업경쟁력강화및전력수급안정","개인정보 처리업무 위탁현황","부서명, 수탁기관, 위탁내용","인사∙총무∙회계","1년","홈페이지","­"]
[104,"한국전력기술","인사노무처","산업 ·중소기업","에너지 및 자원개발","전력산업경쟁력강화및전력수급안정","개인정보 제3자 제공현황","수탁자, 이용목적, 항목, 보유(이용)기간","인사∙총무∙회계","1년","홈페이지","­"]
[105,"한국전력기술","인사노무처","산업 ·중소기업","에너지 및 자원개발","전력산업경쟁력강화및전력수급안정","3년간 유연근무 현황","인원수","인사∙총무∙회계","반기","홈페이지","해당"]
[106,"한국전력기술","인사노무처","산업 ·중소기업","에너지 및 자원개발","전력산업경쟁력강화및전력수급안정","대외기관 개인수상 현황","대외기관 개인수상 내역 및 내용 ","인사∙총무∙회계","1년","홈페이지","해당"]
[107,"한국전력기술","인사노무처","산업 ·중소기업","에너지 및 자원개발","전력산업경쟁력강화및전력수급안정","대외 포상 수상내용","포상일시, 포상훈격, 포상대상자, 포상기관, 포상제목","홍보∙대외협력","1년","홈페이지","­"]
[108,"한국전력기술","인사노무처","산업 ·중소기업","에너지 및 자원개발","전력산업경쟁력강화및전력수급안정","노사 협의회 현황","협의회 구성 및 기능, 협의회 운영 방법, 노사협의회 의결사항","법무∙노무","반기","홈페이지","­"]
[109,"한국전력기술","인사노무처","산업 ·중소기업","에너지 및 자원개발","전력산업경쟁력강화및전력수급안정","노동쟁의 현황","노동쟁의 현황","법무∙노무","반기","홈페이지","해당"]
[110,"한국전력기술","인사노무처","산업 ·중소기업","에너지 및 자원개발","전력산업경쟁력강화및전력수급안정","노사협의체 현황","노사 위원 명단, 협의체 수, 수행업무","법무∙노무","1년","홈페이지","해당"]
[111,"한국전력기술","인사노무처","산업 ·중소기업","에너지 및 자원개발","전력산업경쟁력강화및전력수급안정","상급단체 전임 현황","상급단체 전임 취임 여부, 전임자 명단","법무∙노무","1년","홈페이지","해당"]
[112,"한국전력기술","인사노무처","산업 ·중소기업","에너지 및 자원개발","전력산업경쟁력강화및전력수급안정","노동조합 현황","설립일, 조직형태,\n상급단체, 조직도","법무∙노무","1년","홈페이지","해당"]
[113,"한국전력기술","인사노무처","산업 ·중소기업","에너지 및 자원개발","전력산업경쟁력강화및전력수급안정","기금지원사업 운용계획","기금명, 설치개요, 기금지원사업 운용계획(기본방향, 사업내용 등)","인사∙총무∙회계","1년","홈페이지","­"]
[114,"한국전력기술","인사노무처","산업 ·중소기업","에너지 및 자원개발","전력산업경쟁력강화및전력수급안정","기금지원사업 운영현황(실적)","기금지원사업 운영현황(사업명, 지원금액, 지원기준, 지원시기 등)","인사∙총무∙회계","1년","홈페이지","­"]
[115,"한국전력기술","인사노무처","산업 ·중소기업","에너지 및 자원개발","전력산업경쟁력강화및전력수급안정","해외 파견직원 복리후생비 등 지급 내역","파견국가명, 직급, 항목별 복리후생비 지급내역, 기타 지원비 지급내역","인사∙총무∙회계","1년","홈페이지","­"]
[116,"한국전력기술","경영지원처","산업 ·중소기업","에너지 및 자원개발","전력산업경쟁력강화및전력수급안정","기숙사 운영 현황","기숙사 운영 현황","인사∙총무∙회계","분기","홈페이지","해당"]
[117,"한국전력기술","인사노무처","산업 ·중소기업","에너지 및 자원개발","전력산업경쟁력강화및전력수급안정","외부기관 수상현황","수상명, 수상자(이름 블라인드처리), 수상년도, 주관기관","홍보∙대외협력","1년","홈페이지","해당"]
[118,null,"인사노무처","산업 ·중소기업","에너지 및 자원개발","전력산업경쟁력강화및전력수급안정","신입사원 공개채용 경쟁률","당해년도 신입사원 공개채용시 직종별 응시자 수, 합격자 및 경쟁률 현황","인사∙총무∙회계","반기","홈페이지"]
[119,"한국전력기술","계약관리실","산업 ·중소기업","에너지 및 자원개발","전력산업경쟁력강화및전력수급안정","협력업체 행동강령","협력업체 행동강령(청렴서약, 청렴계약, 위반시 제재 등) 내용","계약∙기타","1년","홈페이지","­","지원업무"]
[120,"한국전력기술","계약관리실","산업 ·중소기업","에너지 및 자원개발","전력산업경쟁력강화및전력수급안정","협력업체 포상내역","업체명, 포상내역, 포상사유","계약∙기타","1년","홈페이지","­","지원업무"]
[121,"한국전력기술","계약관리실","산업 ·중소기업","에너지 및 자원개발","전력산업경쟁력강화및전력수급안정","협력업체 상벌심의 결과","업체명, 제재내역(제재명, 제재기간 등), 제재사유","계약∙기타","1년","홈페이지","­","지원업무"]
[122,"한국전력기술","계약관리실","산업 ·중소기업","에너지 및 자원개발","전력산업경쟁력강화및전력수급안정","친환경제품 구매실적","품목, 구매 수량 및 금액, 전체 물품 구매액 대비 비율","계약∙기타","1년","홈페이지","­","지원업무"]
[123,"한국전력기술","계약관리실","산업 ·중소기업","에너지 및 자원개발","전력산업경쟁력강화및전력수급안정","노임단가","엔지니어링 노임단가, 소프트웨어 노임단가","계약∙기타","1년","홈페이지","­","지원업무"]
[124,"한국전력기술","계약관리실","산업 ·중소기업","에너지 및 자원개발","전력산업경쟁력강화및전력수급안정","계약심사 현황","분야(전산, 토목, 건축 등), 유형(공사, 설계변경, 용역, 설비 등), 요청기관, 심사요청액, 심사액, 절감액, 우수사례","계약∙기타","1년","홈페이지","­","지원업무"]
[125,"한국전력기술","계약관리실","산업 ·중소기업","에너지 및 자원개발","전력산업경쟁력강화및전력수급안정","1천만원이상 공사, 용역, 물품 계약 현황(수의계약 제외)","구분(공사, 용역, 물품), 계약명, 계약일자, 계약금액, 계약내역, 낙찰율, 계약업체(업체명, 소재지, 대표자), 담당부서","계약∙기타","반기","홈페이지","­","지원업무"]
[126,"한국전력기술","계약관리실","산업 ·중소기업","에너지 및 자원개발","전력산업경쟁력강화및전력수급안정","500만원 이상 공사, 용역, 물품 수의계약 현황","구분(공사, 용역, 물품), 계약명, 계약일자, 계약금액, 계약내역, 계약업체(업체명, 소재지, 대표자), 수의계약사유, 담당부서","계약∙기타","반기","홈페이지","­","지원업무"]
[127,"한국전력기술","계약관리실","산업 ·중소기업","에너지 및 자원개발","전력산업경쟁력강화및전력수급안정","1억원이상 공사, 용역, 물품 발주계획","구분(공사, 용역, 물품), 명칭, 시기, 물량 및 규모, 도급액, 입찰방법, 담당부서, 전화번호","계약∙기타","분기","홈페이지","­","지원업무"]
[128,"한국전력기술","계약관리실","산업 ·중소기업","에너지 및 자원개발","전력산업경쟁력강화및전력수급안정","사업수행능력평가기준","사업수행능력평가기준","계약∙기타","1년","홈페이지","해당","지원업무"]
[129,"한국전력기술","계약관리실","산업 ·중소기업","에너지 및 자원개발","전력산업경쟁력강화및전력수급안정","사업보유면허관리현황","사업보유면허관리현황","계약∙기타","1년","홈페이지","해당","지원업무"]
[130,"한국전력기술","계약관리실","산업 ·중소기업","에너지 및 자원개발","전력산업경쟁력강화및전력수급안정","용역적격심사기준","용역적격심사기준","계약∙기타","1년","홈페이지","해당","지원업무"]
[131,"한국전력기술","계약관리실","산업 ·중소기업","에너지 및 자원개발","전력산업경쟁력강화및전력수급안정","물품적격심사기준","물품적격심사기준","계약∙기타","1년","홈페이지","해당","지원업무"]
[132,"한국전력기술","계약관리실","산업 ·중소기업","에너지 및 자원개발","전력산업경쟁력강화및전력수급안정","공사적격심사기준","공사적격심사기준","계약∙기타","1년","홈페이지","해당","지원업무"]
[133,"한국전력기술","계약관리실","산업 ·중소기업","에너지 및 자원개발","전력산업경쟁력강화및전력수급안정","입찰평가위원진 구성 및 운영지침","입찰평가위원진 구성 및 운영지침","계약∙기타","1년","홈페이지","해당","지원업무"]
[134,"한국전력기술","계약관리실","산업 ·중소기업","에너지 및 자원개발","전력산업경쟁력강화및전력수급안정","표준수의계약운영업무지침","표준수의계약운영업무지침","계약∙기타","1년","홈페이지","해당","지원업무"]
[135,"한국전력기술","계약관리실","산업 ·중소기업","에너지 및 자원개발","전력산업경쟁력강화및전력수급안정","협상에의한계약운영기준","협상에의한계약운영기준","계약∙기타","1년","홈페이지","해당","지원업무"]
[136,"한국전력기술","계약관리실","산업 ·중소기업","에너지 및 자원개발","전력산업경쟁력강화및전력수급안정","포괄 손해배상보험 가입 현황","계약기간, 보험업체","기획∙전략","1년","홈페이지","해당"]
[137,"한국전력기술","안전보안실","산업 ·중소기업","에너지 및 자원개발","전력산업경쟁력강화및전력수급안정","보안점검 결과","구분(자체점검, 외부기관 점검), 점검일시, 점검대상, 점검결과, 조치결과","인사∙총무∙회계","반기","홈페이지","­","지원업무"]
[138,"한국전력기술","안전보안실","산업 ·중소기업","에너지 및 자원개발","전력산업경쟁력강화및전력수급안정","개인정보 보호방침","개인정보처리 목적, 개인정보 처리 및 보유현황, 제3자제공, 위탁현황, 항목, 파기, 안전성 확보조치, 열람청구방법 등","정보화","1년","홈페이지","­","지원업무"]
[139,"한국전력기술","안전보안실","산업 ·중소기업","에너지 및 자원개발","전력산업경쟁력강화및전력수급안정","개인정보파일 보유현황","명칭, 부서명, 운영근거, 운영목적, 보유기간, 정보주체수","정보화","1년","홈페이지","­","지원업무"]
[140,"한국전력기술","안전보안실","산업 ·중소기업","에너지 및 자원개발","전력산업경쟁력강화및전력수급안정","정보보안경영시스템 인증","인증개요, 인증기관, 인증범위, 인증활동","정보화","1년","홈페이지","해당","지원업무"]
[141,"한국전력기술","안전보안실","산업 ·중소기업","에너지 및 자원개발","전력산업경쟁력강화및전력수급안정","연간보안교육 계획","교육명, 교육내용, 교육대상자, 교육일정","정보화","1년","홈페이지","해당","지원업무"]
[142,"한국전력기술","안전보안실","산업 ·중소기업","에너지 및 자원개발","전력산업경쟁력강화및전력수급안정","개인정보수집 관련 홈페이지 운영 현황","도메인명, 홈페이지명, 고유식별정보 수집, \n운영방식","정보화","1년","홈페이지","해당","지원업무"]
[143,"한국전력기술","안전보안실","산업 ·중소기업","에너지 및 자원개발","전력산업경쟁력강화및전력수급안정","영상정보처리기기(CCTV) 설치,운영 현황","영상정보처리기기(CCTV) 설치 및 운영 현황","정보화","1년","홈페이지","해당","지원업무"]
[144,"한국전력기술","안전보안실","산업 ·중소기업","에너지 및 자원개발","전력산업경쟁력강화및전력수급안정","외부 방문객 출입현황","내국인,외국인 출입현황","정보화","1년","홈페이지","해당","지원업무"]
[145,"한국전력기술","안전보안실","산업 ·중소기업","에너지 및 자원개발","전력산업경쟁력강화및전력수급안정","클린룸 운영 현황","봉인씰, 노트북, CD,USB등 검수현황","정보화","1년","홈페이지","해당","지원업무"]
[146,"한국전력기술","안전보안실","산업 ·중소기업","에너지 및 자원개발","전력산업경쟁력강화및전력수급안정","설계업무용 소프트웨어 등록/폐기 현황","분야별 소프트웨어 등록/폐기 수량","정보화","1년","홈페이지","해당","지원업무"]
[147,"한국전력기술","혁신성장실","산업 ·중소기업","에너지 및 자원개발","전력산업경쟁력강화및전력수급안정","고객상담 Q&A","고객상담 주요질의 및 답변 내용","홍보∙대외협력","1년","홈페이지","­"]
[148,"한국전력기술","혁신성장실","산업 ·중소기업","에너지 및 자원개발","전력산업경쟁력강화및전력수급안정","명예대사 및 홍보대사 운영현황","구분(명예대사, 홍보대사), 성명, 주요경력, 위촉사유, 위촉일, 위촉기간, 활동비 지급내역","홍보∙대외협력","1년","홈페이지","­"]
[149,"한국전력기술","혁신성장실","산업 ·중소기업","에너지 및 자원개발","전력산업경쟁력강화및전력수급안정","정보화사업 추진현황","유형(홈페이지 개발·개편·통합·운영, 콘텐츠 제작 등), 사업명, 사업목적, 사업내용, 사업일정, 관련예산, 담당부서","홍보∙대외협력","1년","홈페이지","­"]
[150,"한국전력기술","혁신성장실","산업 ·중소기업","에너지 및 자원개발","전력산업경쟁력강화및전력수급안정","홍보관, 전시관, 박물관 등 현황","명칭, 소재지, 규모, 주요시설, 운영기간, 운영예산, 인원, 운영시간 및 이용방법","홍보∙대외협력","1년","홈페이지","­"]
[151,"한국전력기술","혁신성장실","산업 ·중소기업","에너지 및 자원개발","전력산업경쟁력강화및전력수급안정","각종 공모전 개최현황","공모전명, 공모기간, 수상내역, 수상작 소개, 담당자, 전화번호","홍보∙대외협력","1년","홈페이지","­"]
[152,"한국전력기술","혁신성장실","산업 ·중소기업","에너지 및 자원개발","전력산업경쟁력강화및전력수급안정","홍보자료 현황","영상 및 인쇄 홍보물, 사보 등","홍보∙대외협력","1년","홈페이지","­"]
[153,"한국전력기술","혁신성장실","산업 ·중소기업","에너지 및 자원개발","전력산업경쟁력강화및전력수급안정","홍보용품 제작 현황","제품명, 단가, 수량, 제작금액, 납품일자, 납품업체(대표자, 소재지 등), 배부부서 및 활용목적","홍보∙대외협력","1년","홈페이지","­"]
[154,"한국전력기술","혁신성장실","산업 ·중소기업","에너지 및 자원개발","전력산업경쟁력강화및전력수급안정","광고비 집행현황","광고매체명, 기간 및 방법, 집행액","홍보∙대외협력","1년","홈페이지","­"]
[155,"한국전력기술","혁신성장실","산업 ·중소기업","에너지 및 자원개발","전력산업경쟁력강화및전력수급안정","국내 전시회 운영 실적","국내 전시회 운영 횟수 등","홍보∙대외협력","1년","홈페이지","해당"]
[156,"한국전력기술","혁신성장실","산업 ·중소기업","에너지 및 자원개발","전력산업경쟁력강화및전력수급안정","국외 전시회 운영 실적","국외 전시회 운영 횟수 등","홍보∙대외협력","1년","홈페이지","해당"]
[157,"한국전력기술","혁신성장실","산업 ·중소기업","에너지 및 자원개발","전력산업경쟁력강화및전력수급안정","SNS 운영 실적","공식 facebook 게시 횟수 등","홍보∙대외협력","1년","홈페이지","해당"]
[158,"한국전력기술","혁신성장실","산업 ·중소기업","에너지 및 자원개발","전력산업경쟁력강화및전력수급안정","홈페이지 뉴스레터 현황","홈페이지 뉴스레터 수신자 수 등","홍보∙대외협력","1년","홈페이지","해당"]
[159,"한국전력기술","혁신성장실","산업 ·중소기업","에너지 및 자원개발","전력산업경쟁력강화및전력수급안정","언론보도 자료 리스트","회사 보도자료 목록 등","홍보∙대외협력","1년","홈페이지","해당"]
[160,"한국전력기술","혁신성장실","산업 ·중소기업","에너지 및 자원개발","전력산업경쟁력강화및전력수급안정","캘린더 제작 부수","회사 달력 제작 수량, 업체 등","홍보∙대외협력","1년","홈페이지","해당"]
[161,"한국전력기술","혁신성장실","산업 ·중소기업","에너지 및 자원개발","전력산업경쟁력강화및전력수급안정","광고이미지 제작 현황","회사광고 이미지, 제작횟수 등","홍보∙대외협력","1년","홈페이지","해당"]
[162,"한국전력기술","혁신성장실","산업 ·중소기업","에너지 및 자원개발","전력산업경쟁력강화및전력수급안정","회사 홈페이지 방문자 현황","월별 회사 홈페이지 방문자 수 현황 등","홍보∙대외협력","1년","홈페이지","해당"]
[163,"한국전력기술","혁신성장실","산업 ·중소기업","에너지 및 자원개발","전력산업경쟁력강화및전력수급안정","사회적 기업 지원현황","지원대상(기업명, 기업소개 등), 지원내용","인사∙총무∙회계","1년","홈페이지","­"]
[164,"한국전력기술","혁신성장실","산업 ·중소기업","에너지 및 자원개발","전력산업경쟁력강화및전력수급안정","중소기업 제품 구매실적","품목, 구매 수량 및 금액, 전체 물품 구매액 대비 비율","계약∙기타","1년","홈페이지","­"]
[165,"한국전력기술","혁신성장실","산업 ·중소기업","에너지 및 자원개발","전력산업경쟁력강화및전력수급안정","장애인 생산품 구매실적","품목, 구매 수량 및 금액, 전체 물품 구매액 대비 비율","계약∙기타","1년","홈페이지","­"]
[166,"한국전력기술","혁신성장실","산업 ·중소기업","에너지 및 자원개발","전력산업경쟁력강화및전력수급안정","미래인재육성기반 사업","장학금 대상","기술∙교육∙품질","1년","홈페이지","해당"]
[167,"한국전력기술","혁신성장실","산업 ·중소기업","에너지 및 자원개발","전력산업경쟁력강화및전력수급안정","이전지역 협력강화","지자체 봉사활동 행사 참여현황","홍보∙대외협력","분기","홈페이지","해당"]
[168,"한국전력기술","혁신성장실","산업 ·중소기업","에너지 및 자원개발","전력산업경쟁력강화및전력수급안정","사회공헌 활동 현황","계기(명절, 연말, 국군장병 위문, 기타 등), 지원일자, 지원대상, 지원내역, 지원금액, 재원조달(임직원 모금, 예산 등)","홍보∙대외협력","반기","홈페이지","­"]
[169,"한국전력기술","혁신성장실","산업 ·중소기업","에너지 및 자원개발","전력산업경쟁력강화및전력수급안정","지역사회 공헌사업 현황","사업명, 사업내용, 관련예산, 추진 경과 및 계획","홍보∙대외협력","반기","홈페이지","­"]
[170,"한국전력기술","혁신성장실","산업 ·중소기업","에너지 및 자원개발","전력산업경쟁력강화및전력수급안정","임직원 행동강령 및 지침","임직원 행동강령 및 지침 내용","감사∙윤리","1년","홈페이지","­"]
[171,"한국전력기술","혁신성장실","산업 ·중소기업","에너지 및 자원개발","전력산업경쟁력강화및전력수급안정","청렴계약 및 윤리서약","임원 직무청렴계약 및 직원 윤리서약 현황","감사∙윤리","1년","홈페이지","­"]
[172,"한국전력기술","혁신성장실","산업 ·중소기업","에너지 및 자원개발","전력산업경쟁력강화및전력수급안정","청렴교육 현황","청렴교육 시행 내역(일시, 장소, 교육내용 등), 참석인원, 기관장 및 임원 참석여부","감사∙윤리","1년","홈페이지","­"]
[173,"한국전력기술","혁신성장실","산업 ·중소기업","에너지 및 자원개발","전력산업경쟁력강화및전력수급안정","청렴마일리지 운영 현황","개요, 운영기간, 지표, 인센티브, 운영결과","감사∙윤리","1년","홈페이지","­"]
[174,"한국전력기술","혁신성장실","산업 ·중소기업","에너지 및 자원개발","전력산업경쟁력강화및전력수급안정","성희롱 예방교육 현황","성희롱 예방교육 시행 내역(일시, 교육방법, 교육내용 등), 참석인원, 기관장 및 임원 참석여부","감사∙윤리","1년","홈페이지","­"]
[175,null,"혁신성장실","산업 ·중소기업","에너지 및 자원개발","전력산업경쟁력강화및전력수급안정","인권경영헌장","한국전력기술 인권경영 헌장","감사∙윤리","1년","홈페이지"]
[176,"한국전력기술","혁신성장실","산업 ·중소기업","에너지 및 자원개발","전력산업경쟁력강화및전력수급안정","상품권 구입 및 배부 현황","구입일자, 종류, 구입금액, 구입목적, 배부처, 배부금액","계약∙기타","매월","홈페이지"]
[177,"한국전력기술","법무총괄반","산업 ·중소기업","에너지 및 자원개발","전력산업경쟁력강화및전력수급안정","진행중인 민사소송현황","구분(행정, 민사), 사건명","법무∙노무","1년","홈페이지","­","지원업무"]
[178,"한국전력기술","법무총괄반","산업 ·중소기업","에너지 및 자원개발","전력산업경쟁력강화및전력수급안정","종결된 소송현황","구분(행정, 민사), 사건명","법무∙노무","1년","홈페이지","해당","지원업무"]
[179,"한국전력기술","법무총괄반","산업 ·중소기업","에너지 및 자원개발","전력산업경쟁력강화및전력수급안정","진행중인 지적재산권 분쟁 현황","구분(분쟁,소송,민원), 사건명, 처리결과 등","법무∙노무","1년","홈페이지","해당","지원업무"]
[180,"한국전력기술","법무총괄반","산업 ·중소기업","에너지 및 자원개발","전력산업경쟁력강화및전력수급안정","진행중인 행정소송 현황","구분(피소,제소), 사건명, 처리결과 등","법무∙노무","1년","홈페이지","해당","지원업무"]
[181,"한국전력기술","법무총괄반","산업 ·중소기업","에너지 및 자원개발","전력산업경쟁력강화및전력수급안정","진행중인 형사소송 현황","구분(고발,피고발), 사건명, 처리결과 등","법무∙노무","1년","홈페이지","해당","지원업무"]
[182,"한국전력기술","법무총괄반","산업 ·중소기업","에너지 및 자원개발","전력산업경쟁력강화및전력수급안정","사내변호사 인력현황","구분(국내, 외국), 인원수","법무∙노무","1년","홈페이지","해당","지원업무"]
[183,"한국전력기술","법무총괄반","산업 ·중소기업","에너지 및 자원개발","전력산업경쟁력강화및전력수급안정","사내변호사 직무교육 현황","교육명, 교육일정, 참여인원","법무∙노무","1년","홈페이지","해당","지원업무"]
[184,"한국전력기술","법무총괄반","산업 ·중소기업","에너지 및 자원개발","전력산업경쟁력강화및전력수급안정","법무역량 교육 현황","구분(사내, 외부), 교육명, 참여인원","법무∙노무","1년","홈페이지","해당","지원업무"]
[185,"한국전력기술","법무총괄반","산업 ·중소기업","에너지 및 자원개발","전력산업경쟁력강화및전력수급안정","외부 변호사 운영현황","법률고문명(법무법인 및 개인), 위촉기간","법무∙노무","1년","홈페이지","­"]
[186,"한국전력기술","법무총괄반","산업 ·중소기업","에너지 및 자원개발","전력산업경쟁력강화및전력수급안정","기관 관련 주요 법령\n- 민사/상사 등 경영일반 관련 주요법령","법, 시행령, 시행규칙 등","법무∙노무","1년","홈페이지","-","지원업무"]
[187,"한국전력기술","(원자력)원전안전센터","산업 ·중소기업","에너지 및 자원개발","전력산업경쟁력강화및전력수급안정","원전 안전관련기기 내진검증현황","내진검증대상 기기목록, 검증방법, 검증문서현황","기술∙교육∙품질","분기","홈페이지","해당","고유업무"]
[188,"한국전력기술","(원자력)원전안전센터","산업 ·중소기업","에너지 및 자원개발","전력산업경쟁력강화및전력수급안정","원전 안전관련기기 내환경검증현황","내환경검증대상 기기목록, 검증방법, 검증문서현황","기술∙교육∙품질","분기","홈페이지","해당","고유업무"]
[189,"한국전력기술","(원자력)원자력사업관리실","산업 ·중소기업","에너지 및 자원개발","전력산업경쟁력강화및전력수급안정","국내외 원자력 현장파견인력 현황(A/E)","파견지, 수행사업, 파견인원 등","인사∙총무∙회계","반기","홈페이지","해당","고유업무"]
[190,"한국전력기술","(원자력)원자력사업관리실","산업 ·중소기업","에너지 및 자원개발","전력산업경쟁력강화및전력수급안정","본부별 주요 계획\n- 원자력본부 주요 계획","본부명, 사업개요, 주요내용, 주요 추진계획","기획∙전략","1년","홈페이지","­","지원업무"]
[191,"한국전력기술","(원자력)원자력사업관리실","산업 ·중소기업","에너지 및 자원개발","전력산업경쟁력강화및전력수급안정","기관 관련 주요 법령\n- 원자력 관련 주요법령","법, 시행령, 시행규칙 등","법무∙노무","1년","홈페이지","­","지원업무"]
[192,"한국전력기술","(원자력)원자력사업관리실","산업 ·중소기업","에너지 및 자원개발","전력산업경쟁력강화및전력수급안정","원자력발전 노형별 이해","노형별 조감도, 절개도, 차이점 등","기술∙교육∙품질","1년","홈페이지","해당","고유업무"]
[193,"한국전력기술","(원자력)원자력사업처","산업 ·중소기업","에너지 및 자원개발","전력산업경쟁력강화및전력수급안정","원자력관련 학술단체 회원등록 현황 ","원자력 학술단체 현황, 우리회사가 회원사로 참여중인 학술단체 목록, 참여 학술활동 현황","기술∙교육∙품질","반기","홈페이지","해당","지원업무"]
[194,"한국전력기술","(원자력)원자력사업처","산업 ·중소기업","에너지 및 자원개발","전력산업경쟁력강화및전력수급안정","원전신흥도입국 지원현황","원전신흥도입국 현황, 지원업무(행사명 등) 사례","홍보∙대외협력","반기","홈페이지","해당","고유업무"]
[195,"한국전력기술","(원자력)원자력사업처","산업 ·중소기업","에너지 및 자원개발","전력산업경쟁력강화및전력수급안정","세계 원자력산업 동향","국가별 소식, 업체별 소식, 국제기구 소식, 신규원전 발주전망, 기술개발 현황","홍보∙대외협력","1년","홈페이지","해당","고유업무"]
[196,"한국전력기술","(원자력)원자력사업처","산업 ·중소기업","에너지 및 자원개발","전력산업경쟁력강화및전력수급안정","원자력본부 소개자료(국외용)","조직도,인력현황, 주요 사업개요","홍보∙대외협력","1년","홈페이지","해당","고유업무"]
[197,"한국전력기술","(원자력)원자력사업처","산업 ·중소기업","에너지 및 자원개발","전력산업경쟁력강화및전력수급안정","지사 및 연락사무소 현황","위치, 지사장/소장 성명 및 연락처 ","홍보∙대외협력","1년","홈페이지","해당","고유업무"]
[198,"한국전력기술","(원자력)기계배관기술실","산업 ·중소기업","에너지 및 자원개발","전력산업경쟁력강화및전력수급안정","원자력발전의 원리(BOP중심)","경수로, 중수로","기술∙교육∙품질","1년","홈페이지","해당","고유업무"]
[199,"한국전력기술","(신)신사업관리실","산업 ·중소기업","에너지 및 자원개발","전력산업경쟁력강화및전력수급안정","국내외 플랜트분야 현장파견 인력 현황","파견지, 수행사업, 파견인원 등","인사∙총무∙회계","반기","홈페이지","해당","고유업무"]
[200,"한국전력기술","(신)신사업관리실","산업 ·중소기업","에너지 및 자원개발","전력산업경쟁력강화및전력수급안정","본부별 주요 계획\n- 에너지신사업본부 주요 계획","본부명, 사업개요, 주요내용, 주요 추진계획","기획∙전략","1년","홈페이지","­","지원업무"]
[201,"한국전력기술","(신)신사업관리실","산업 ·중소기업","에너지 및 자원개발","전력산업경쟁력강화및전력수급안정","기관 관련 주요 법령\n- 수화력, 신재생 관련 주요법령","법, 시행령, 시행규칙 등","법무∙노무","1년","홈페이지","­","지원업무"]
[202,"한국전력기술","(신)신사업개발처","산업 ·중소기업","에너지 및 자원개발","전력산업경쟁력강화및전력수급안정","한기수행 1,000MW급 석탄화력발전소 설계능력의 국내외 홍보를 위한 영문 소개서 제작","소개서 구성","홍보∙대외협력","1년","홈페이지","해당","고유업무"]
[203,"한국전력기술","(신)신사업개발처","산업 ·중소기업","에너지 및 자원개발","전력산업경쟁력강화및전력수급안정","에너지신사업본부 소개자료(국외용)","조직도,인력현황, 주요 사업개요","홍보∙대외협력","1년","홈페이지","해당","고유업무"]
[204,"한국전력기술","(신)신사업개발처","산업 ·중소기업","에너지 및 자원개발","전력산업경쟁력강화및전력수급안정","지사 및 연락사무소 현황","위치, 지사장/소장 성명 및 연락처 ","홍보∙대외협력","1년","홈페이지","해당","고유업무"]
[205,"한국전력기술","(신)신사업개발처","산업 ·중소기업","에너지 및 자원개발","전력산업경쟁력강화및전력수급안정","국내 EPCM모델 사업 발굴 및 수행","개요, 사업특성, 사업수행효과","홍보∙대외협력","1년","홈페이지","해당","고유업무"]
[206,"한국전력기술","(신)기계배관환경기술실","산업 ·중소기업","에너지 및 자원개발","전력산업경쟁력강화및전력수급안정","석탄화력발전의 원리","발전원리, 적용 발전소","기술∙교육∙품질","1년","홈페이지","해당","고유업무"]
[207,"한국전력기술","(신)기계배관환경기술실","산업 ·중소기업","에너지 및 자원개발","전력산업경쟁력강화및전력수급안정","복합화력발전의 원리","발전원리, 적용 발전소","기술∙교육∙품질","1년","홈페이지","해당","고유업무"]
[208,"한국전력기술","(신)기계배관환경기술실","산업 ·중소기업","에너지 및 자원개발","전력산업경쟁력강화및전력수급안정","신재생발전의 원리(풍력, IGCC)","발전원리, 적용 발전소","기술∙교육∙품질","1년","홈페이지","해당","고유업무"]
[209,"한국전력기술","(원자로)원자로사업관리실","산업 ·중소기업","에너지 및 자원개발","전력산업경쟁력강화및전력수급안정","국내외 원자력 현장파견 인력 현황(NSSS)","파견지, 수행사업, 파견인원 등","인사∙총무∙회계","반기","홈페이지","해당","고유업무"]
[210,"한국전력기술","(원자로)원자로사업관리실","산업 ·중소기업","에너지 및 자원개발","전력산업경쟁력강화및전력수급안정","본부별 주요 계획\n- 원자로설계개발단 주요 계획","본부명, 사업개요, 주요내용, 주요 추진계획","기획∙전략","1년","홈페이지","­","지원업무"]
[211,"한국전력기술","(원자로)유체계통설계그룹","산업 ·중소기업","에너지 및 자원개발","전력산업경쟁력강화및전력수급안정","원자력발전의 원리(NSSS중심)","경수로, 중수로","기술∙교육∙품질","1년","홈페이지","해당","고유업무"]
[212,"한국전력기술","미래전략연구소","산업 ·중소기업","에너지 및 자원개발","전력산업경쟁력강화및전력수급안정","해외기관 MOU 체결 현황","국가명, 기관명, 체결일자, 명칭, 내용, 향후 추진계획 ","홍보∙대외협력","반기","홈페이지","­","지원업무"]
[213,"한국전력기술","해당부서\n(각 사업본부 사업개발담당부서)","산업 ·중소기업","에너지 및 자원개발","전력산업경쟁력강화및전력수급안정","국제회의 참여 및 역할","회의명칭, 회의개요, 참석자, 주요참여 국가 및 기관, 회의결과 및 추진계획","홍보∙대외협력","반기","홈페이지","­","지원업무"]
[214,"한국전력기술","해당부서\n(사업관리실)","산업 ·중소기업","에너지 및 자원개발","전력산업경쟁력강화및전력수급안정","단위 주요사업 목록\n(전력수급계획 사업대상)","단위 주요사업명, 분류체계, 단위사업 설명, 부서명, 보존기간, 보존기간 책정사유","기술∙교육∙품질","반기","홈페이지","­","지원업무"]
[215,"한국전력기술","해당부서\n(사업관리실)","산업 ·중소기업","에너지 및 자원개발","전력산업경쟁력강화및전력수급안정","총사업비 500억원 이상의 예비타당성 조사 대상사업 및 조사결과","사업명, 사업기간, 사업내용, 총사업비, 예비타당성 조사기관, 조사결과, 사업착수 여부","계약∙기타","1년","홈페이지","­","지원업무"]
[216,"한국전력기술","해당부서\n(사업관리실)","산업 ·중소기업","에너지 및 자원개발","전력산업경쟁력강화및전력수급안정","공사, 용역, 물품 대가에 대한 1년 1억원 이상 지급 현황","구분(공사, 용역, 물품), 계약명, 계약일, 종료일, 계약금액, 기성금, 준공금, 지급대상업체(업체명, 소재지, 대표자), 담당부서","계약∙기타","1년","홈페이지","­","지원업무"]
[217,"한국전력기술","해당부서\n(사업관리실)","산업 ·중소기업","에너지 및 자원개발","전력산업경쟁력강화및전력수급안정","대규모(100억원 이상) 공사정보","사업명, 사업내역, 예산, 추진실적 및 계획, 담당부서, 전화번호","계약∙기타","반기","홈페이지","­","지원업무"]

{"sheet":"사전정보공표 항목(명칭변경전)","index":2,"n_rows":220,"n_cols":13,"rows_kept":220,"cut":false,"hidden":true,"merged":[[0,0,0,12]]}
["■ 사전정보공표 항목 및 담당부서"]
["2019.4.3. 기준"]
["연번","기관명","신규 담당 부서"," BRM 1레벨","BRM 2레벨","BRM 3레벨","공표목록","공표항목","항목분류","공표주기","공표방법","자율공시 해당여부","유형"]
[1,"한국전력기술","감사실","산업 ·중소기업","에너지 및 자원개발","전력산업경쟁력강화및전력수급안정","감사전문성 향상 추진 현황","감사인명, 감사전문 교육이수시간","감사∙윤리","1년","홈페이지","해당"]
[2,"한국전력기술","감사실","산업 ·중소기업","에너지 및 자원개발","전력산업경쟁력강화및전력수급안정","옴브즈만 운영 현황","개최일시, 회의내용, 회의결과, 건의사항에 대한 조치결과","감사∙윤리","1년","홈페이지","­"]
[3,"한국전력기술","감사실","산업 ·중소기업","에너지 및 자원개발","전력산업경쟁력강화및전력수급안정","감사계획","유형(종합/특별 등), 대상(본부,부서 등), 감사일정, 감사반편성, 중점 감사사항","감사∙윤리","1년","홈페이지","­"]
[4,"한국전력기술","감사실","산업 ·중소기업","에너지 및 자원개발","전력산업경쟁력강화및전력수급안정","일상감사 현황","일상감사 대상, 처리절차, 관련 법규","감사∙윤리","1년","홈페이지","­"]
[5,"한국전력기술","감사실","산업 ·중소기업","에너지 및 자원개발","전력산업경쟁력강화및전력수급안정","공직기강 감찰결과","시기별 감찰개요, 감찰결과(대상, 내용, 위법사항 등), 조치결과","감사∙윤리","1년","홈페이지","­"]
[6,"한국전력기술","감사실","산업 ·중소기업","에너지 및 자원개발","전력산업경쟁력강화및전력수급안정","부패행위 신고 및 처리결과","신고목록 및 내용, 조사결과(내용, 위법사항 등), 조치결과","감사∙윤리","1년","홈페이지","­"]
[7,"한국전력기술","감사실","산업 ·중소기업","에너지 및 자원개발","전력산업경쟁력강화및전력수급안정","범죄유형별 형사처분 임직원 현황","범죄유형, 범죄내용, 기소여부, 재판결과, 징계내역","감사∙윤리","1년","홈페이지","­"]
[8,"한국전력기술","감사실","산업 ·중소기업","에너지 및 자원개발","전력산업경쟁력강화및전력수급안정","고충·다수 민원관련 조사 및 처리결과","유형(고충, 다수), 민원목록 및 내용, 조사결과(내용, 위법사항 등), 민원처리 결과, 조치결과","감사∙윤리","1년","홈페이지","­"]
[9,"한국전력기술","감사실","산업 ·중소기업","에너지 및 자원개발","전력산업경쟁력강화및전력수급안정","반부패 경쟁력 추진 현황","반부패 경쟁력 평가 추진계획, 반부패 추진 시책","감사∙윤리","1년","홈페이지","­"]
[10,"한국전력기술","감사실","산업 ·중소기업","에너지 및 자원개발","전력산업경쟁력강화및전력수급안정","반부패 경쟁력평가 결과","조사대상, 기간, 평가부문(주요 평가내용), 평가결과(등급)","감사∙윤리","1년","홈페이지","­"]
[11,"한국전력기술","감사실","산업 ·중소기업","에너지 및 자원개발","전력산업경쟁력강화및전력수급안정","종합청렴도 평가","권익위 종합청렴도 평가결과","감사∙윤리","1년","홈페이지","­"]
[12,"한국전력기술","감사실","산업 ·중소기업","에너지 및 자원개발","전력산업경쟁력강화및전력수급안정","청렴도 조사 결과","조사대상, 기간, 설문대상, 방법, 측정업무, 표본수, 측정내용, 평가결과(점수, 평균, 등급)","감사∙윤리","1년","홈페이지","­"]
[13,"한국전력기술","감사실","산업 ·중소기업","에너지 및 자원개발","전력산업경쟁력강화및전력수급안정","재산등록","재산등록의무자 기준 및 연 재산등록자 인원현황","감사∙윤리","1년","홈페이지","­"]
[14,"한국전력기술","감사실","산업 ·중소기업","에너지 및 자원개발","전력산업경쟁력강화및전력수급안정","민원처리 절차","청원, 진정민원 접수 및 처리안내","감사∙윤리","1년","홈페이지","­"]
[15,"한국전력기술","미래전략연구소","산업 ·중소기업","에너지 및 자원개발","전력산업경쟁력강화및전력수급안정","단위 정부과제 목록","단위 정부과제명, 분류체계, 단위과제 설명, 부서명, 보존기간, 보존기간 책정사유","기술∙교육∙품질","반기","홈페이지","­"]
[16,"한국전력기술","미래전략연구소","산업 ·중소기업","에너지 및 자원개발","전력산업경쟁력강화및전력수급안정","국내학술활동참가현황","학술명, 학술기간, 학술기관","기술∙교육∙품질","반기","홈페이지","해당"]
[17,"한국전력기술","미래전략연구소","산업 ·중소기업","에너지 및 자원개발","전력산업경쟁력강화및전력수급안정","주요 연구개발과제 완료 현황","과제명, 과제내용, 수행기간, 총연구비, 연구책임자","기술∙교육∙품질","1년","홈페이지","­"]
[18,"한국전력기술","미래전략연구소","산업 ·중소기업","에너지 및 자원개발","전력산업경쟁력강화및전력수급안정","국비보조 및 정부보조사업 현황","사업명, 사업내용, 항목별 예산 내역","기술∙교육∙품질","1년","홈페이지","­"]
[19,"한국전력기술","미래전략연구소","산업 ·중소기업","에너지 및 자원개발","전력산업경쟁력강화및전력수급안정","논문발표 현황","최근 3년간 국내외 논문발표 현황 총괄표(연도별, 부서별, 발표건수)","기술∙교육∙품질","1년","홈페이지","해당"]
[20,"한국전력기술","미래전략연구소","산업 ·중소기업","에너지 및 자원개발","전력산업경쟁력강화및전력수급안정","스페셜리스트  운영 현황","스페셜리스트 전문분야 및 직무내역","인사∙총무∙회계","1년","홈페이지","해당"]
[21,"한국전력기술","미래전략연구소","산업 ·중소기업","에너지 및 자원개발","전력산업경쟁력강화및전력수급안정","산학협력 현황","산학연관 MOU 체결 현황","홍보∙대외협력","반기","홈페이지","­"]
[22,"한국전력기술","미래전략연구소","산업 ·중소기업","에너지 및 자원개발","전력산업경쟁력강화및전력수급안정","기록물 생산 현황 및 폐기 현황","생산현황(생산연도별, 보존기간별(영구, 준영구, 30년, 10년, 5년, 3년, 1년), 문서 생산건수), 폐기현황(생산연도, 보존기간, 문서 폐기건수)","인사∙총무∙회계","1년","홈페이지","­"]
[23,"한국전력기술","미래전략연구소","산업 ·중소기업","에너지 및 자원개발","전력산업경쟁력강화및전력수급안정","시청각기록물 보유현황","생산부서, 생산연도, 보존기간, 기록물제목","정보화","1년","홈페이지","­"]
[24,"한국전력기술","미래전략연구소","산업 ·중소기업","에너지 및 자원개발","전력산업경쟁력강화및전력수급안정","정기간행물 등록현황","명칭, 발행인, 등록일자, 발행주기","정보화","1년","홈페이지","­"]
[25,"한국전력기술","미래전략연구소","산업 ·중소기업","에너지 및 자원개발","전력산업경쟁력강화및전력수급안정","기술정보실 보유도서 목록 현황","전문도서명, 정기간행물명, 발행처, 저자, 발행년도","정보화","반기","홈페이지","해당"]
[26,"한국전력기술","미래전략연구소","산업 ·중소기업","에너지 및 자원개발","전력산업경쟁력강화및전력수급안정","기술정보실 DB 검색 서비스 현황","가입중인 외부 DB 명, 계약기관, DB소개","정보화","1년","홈페이지","해당"]
[27,"한국전력기술","미래전략연구소","산업 ·중소기업","에너지 및 자원개발","전력산업경쟁력강화및전력수급안정","전문도서 보유목록 현황","전문도서명, 분야, 발행처, 저자, 출판년도","정보화","1년","홈페이지","해당"]
[28,"한국전력기술","미래전략연구소","산업 ·중소기업","에너지 및 자원개발","전력산업경쟁력강화및전력수급안정","열린도서관 교양 도서 현황","교양서명, 분야, 발행처, 저자, 출판년도","정보화","1년","홈페이지","해당"]
[29,"한국전력기술","미래전략연구소","산업 ·중소기업","에너지 및 자원개발","전력산업경쟁력강화및전력수급안정","CODE & STANDARD 운영현황","CODE & STANDARD명, 분야, 발행처, 출판년도","정보화","1년","홈페이지","해당"]
[30,"한국전력기술","미래전략연구소","산업 ·중소기업","에너지 및 자원개발","전력산업경쟁력강화및전력수급안정","기술정보실 국내 DB 구독서비스 현황","가입중인 국내 DB명, 계약기관, DB소개","정보화","1년","홈페이지","해당"]
[31,"한국전력기술","미래전략연구소","산업 ·중소기업","에너지 및 자원개발","전력산업경쟁력강화및전력수급안정","전자저널 구독현황","구독중인 전자저널명, 계약기관, 전자저널 소개","정보화","1년","홈페이지","해당"]
[32,"한국전력기술","미래전략연구소","산업 ·중소기업","에너지 및 자원개발","전력산업경쟁력강화및전력수급안정","기술정보실 해외 DB 구독 서비스 현황","가입중인 해외 DB 명, 계약기관, DB소개","정보화","1년","홈페이지","해당"]
[33,"한국전력기술","미래전략연구소","산업 ·중소기업","에너지 및 자원개발","전력산업경쟁력강화및전력수급안정","비공개기록물 공개 재분류 목록","생산기관, 생산연도, 보존기간, 기록물철명, 기록물건명, 재분류 의견","정보화","1년","홈페이지","­"]
[34,"한국전력기술","미래전략연구소","산업 ·중소기업","에너지 및 자원개발","전력산업경쟁력강화및전력수급안정","빅데이터활용 현황 및 계획","빅데이터활용 현황 및 계획(정책, 전략, 홍보, 교육 등) ","정보화","반기","홈페이지","­"]
[35,"한국전력기술","미래전략연구소","산업 ·중소기업","에너지 및 자원개발","전력산업경쟁력강화및전력수급안정","정보시스템 운영 현황","시스템명, 시스템개요","정보화","1년","홈페이지","해당","지원업무"]
[36,"한국전력기술","품질안전환경처","산업 ·중소기업","에너지 및 자원개발","전력산업경쟁력강화및전력수급안정","원자력 안전점검의 날 이행실적(A/E)","안전세미나 주제, 발표자, 참석인원, 사진 ","기술∙교육∙품질","1년","홈페이지","해당"]
[37,"한국전력기술","품질안전환경처","산업 ·중소기업","에너지 및 자원개발","전력산업경쟁력강화및전력수급안정","원자력 안전점검의 날 이행실적(NSSS)","안전세미나 주제, 발표자, 참석인원, 사진 ","기술∙교육∙품질","1년","홈페이지","해당"]
[38,"한국전력기술","품질안전환경처","산업 ·중소기업","에너지 및 자원개발","전력산업경쟁력강화및전력수급안정","품질관련 자격인증 보유현황","인증서, 분야, 최초취득일, 유효기간, 갱신주기","기술∙교육∙품질","1년","홈페이지","해당"]
[39,"한국전력기술","품질안전환경처","산업 ·중소기업","에너지 및 자원개발","전력산업경쟁력강화및전력수급안정","품질경영시스템 체계","품질보증/품질경영 문서화 체계도 등","기술∙교육∙품질","1년","홈페이지","해당"]
[40,"한국전력기술","품질안전환경처","산업 ·중소기업","에너지 및 자원개발","전력산업경쟁력강화및전력수급안정","안전환경경영시스템 체계","안전, 보건, 환경 문서화 체계도 등","기술∙교육∙품질","1년","홈페이지","해당"]
[41,"한국전력기술","품질안전환경처","산업 ·중소기업","에너지 및 자원개발","전력산업경쟁력강화및전력수급안정","안전보건환경 관련 자격인증 보유현황","인증서, 분야, 최초취득일, 유효기간, 갱신주기","기술∙교육∙품질","1년","홈페이지","해당"]
[42,"한국전력기술","품질안전환경처","산업 ·중소기업","에너지 및 자원개발","전력산업경쟁력강화및전력수급안정","하도급업체 품질감사현황\n협력업체 품질감사현황","감사 수행 건수, 감사 수검 업체","기술∙교육∙품질","1년","홈페이지","해당"]
[43,"한국전력기술","품질안전환경처","산업 ·중소기업","에너지 및 자원개발","전력산업경쟁력강화및전력수급안정","기관 관련 주요 법령\n- 품질/안전/환경 관련 주요법령","법, 시행령, 시행규칙 등","법무∙노무","1년","홈페이지","­"]
[44,"한국전력기술","인재개발교육원","산업 ·중소기업","에너지 및 자원개발","전력산업경쟁력강화및전력수급안정","이공계 대학생 대상 Power Engineering School Camp 실시","교육일정, 교육과목, 대상인원, 참여학교","기술∙교육∙품질","반기","홈페이지","해당"]
[45,"한국전력기술","인재개발교육원","산업 ·중소기업","에너지 및 자원개발","전력산업경쟁력강화및전력수급안정","전력그룹사 대상 발전소 설계기술 수탁교육 실시","교육일정, 교육과목, 대상인원, 회사","기술∙교육∙품질","반기","홈페이지","해당"]
[46,"한국전력기술","인재개발교육원","산업 ·중소기업","에너지 및 자원개발","전력산업경쟁력강화및전력수급안정","협력 중소기업 대상 맞춤형 엔지니어링 기술교육 실시","교육일정, 교육과목, 대상인원, 참여회사","기술∙교육∙품질","반기","홈페이지","해당"]
[47,"한국전력기술","인재개발교육원","산업 ·중소기업","에너지 및 자원개발","전력산업경쟁력강화및전력수급안정","기술전문교육 기본과정 실시","교육일정, 교육대상","기술∙교육∙품질","1년","홈페이지","해당"]
[48,"한국전력기술","인재개발교육원","산업 ·중소기업","에너지 및 자원개발","전력산업경쟁력강화및전력수급안정","기술전문교육 성숙과정 실시","교육일정, 교육대상","기술∙교육∙품질","1년","홈페이지","해당"]
[49,"한국전력기술","인재개발교육원","산업 ·중소기업","에너지 및 자원개발","전력산업경쟁력강화및전력수급안정","기술전문교육 고도과정 실시","교육일정, 교육대상","기술∙교육∙품질","1년","홈페이지","해당"]
[50,"한국전력기술","인재개발교육원","산업 ·중소기업","에너지 및 자원개발","전력산업경쟁력강화및전력수급안정","신입사원 직무입문교육 실시","교육일정, 교육대상","기술∙교육∙품질","1년","홈페이지","해당"]
[51,"한국전력기술","인재개발교육원","산업 ·중소기업","에너지 및 자원개발","전력산업경쟁력강화및전력수급안정","경력사원 직무입문교육 실시","교육일정, 교육대상","기술∙교육∙품질","1년","홈페이지","해당"]
[52,"한국전력기술","기획처","산업 ·중소기업","에너지 및 자원개발","전력산업경쟁력강화및전력수급안정","정보공개 청구 및 처리현황","청구현황(방법별, 공개여부 결정기간별, 기타청구처리 건수), 처리현황(전부공개, 부분공개, 비공개, 취하 등 건수)","기획∙전략","반기","홈페이지","­"]
[53,"한국전력기술","기획처","산업 ·중소기업","에너지 및 자원개발","전력산업경쟁력강화및전력수급안정","공공데이터 개방사업 현황","사업명, 사업목적, 사업내용, 추진현황, 관련예산, 담당부서","기획∙전략","반기","홈페이지","­"]
[54,"한국전력기술","기획처","산업 ·중소기업","에너지 및 자원개발","전력산업경쟁력강화및전력수급안정","공공데이터 개방목록","공공데이터 보유목록, 책임관, 실무담당자, 전화번호","기획∙전략","반기","홈페이지","­"]
[55,"한국전력기술","기획처","산업 ·중소기업","에너지 및 자원개발","전력산업경쟁력강화및전력수급안정","회사 비전 및 경영전략(삭제)\n회사 미션 및 비전","회사 비전 및 경영전략(삭제)\n회사 미션 및 비전","기획∙전략","1년","홈페이지","해당"]
[56,"한국전력기술","기획처","산업 ·중소기업","에너지 및 자원개발","전력산업경쟁력강화및전력수급안정","본부별 주요 계획\n- 경영관리본부 주요 계획","본부명, 사업개요, 주요내용, 주요 추진계획","기획∙전략","1년","홈페이지","­"]
[57,"한국전력기술","기획처","산업 ·중소기업","에너지 및 자원개발","전력산업경쟁력강화및전력수급안정","중장기 전략 및 경영목표(삭제)\n중장기 경영전략","중장기 전략 및 경영목표(삭제)\n중장기 경영전략","기획∙전략","1년","홈페이지","­"]
[58,"한국전력기술","기획처","산업 ·중소기업","에너지 및 자원개발","전력산업경쟁력강화및전력수급안정","정부 경영실적 평가 결과","기관평가(평가등급, 전년도 평가등급 및 평가등급 변경 사유),  기관장 평가등급(평가등급, 전년도 평가등급 및 평가등급 변경사유), 감사 평가등급(평가등급, 전년도 평가등급 및 평가등급 변경사유)","기획∙전략","1년","홈페이지","­"]
[59,"한국전력기술","기획처","산업 ·중소기업","에너지 및 자원개발","전력산업경쟁력강화및전력수급안정","각종 위원회 구성 및 운영","위원회명,  위원회 구성(위원수 등), 설치목적, 설치근거 ","기획∙전략","1년","홈페이지","­"]
[60,"한국전력기술","기획처","산업 ·중소기업","에너지 및 자원개발","전력산업경쟁력강화및전력수급안정","각종 위원회 심의결과","위원회명, 회의개최 일자, 참석 위원, 심의안건, 심의결과","기획∙전략","1년","홈페이지","­"]
[61,"한국전력기술","기획처","산업 ·중소기업","에너지 및 자원개발","전력산업경쟁력강화및전력수급안정","기관 업무보고 자료","일반현황, 주요 업무계획","기획∙전략","1년","홈페이지","­"]
[62,"한국전력기술","기획처","산업 ·중소기업","에너지 및 자원개발","전력산업경쟁력강화및전력수급안정","소속기관 경영실적평가 결과","소속기관명, 평가기준(평가지표, 배점, 평가방법), 평가결과, 지적사항, 조치계획 및 조치결과 ","기획∙전략","1년","홈페이지","­"]
[63,"한국전력기술","기획처","산업 ·중소기업","에너지 및 자원개발","전력산업경쟁력강화및전력수급안정","사규 현황","명칭, 제정일자, 최종공포 일자, 소관부서장, 연락처, 규정내용","기획∙전략","1년","홈페이지","­"]
[64,"한국전력기술","기획처","산업 ·중소기업","에너지 및 자원개발","전력산업경쟁력강화및전력수급안정","정보공개 공개 및 비공개 목록","공개목록(청구제목, 청구내용, 담당부서), 비공개 목록(청구제목, 청구내용, 비공개사유, 담당부서)","기획∙전략","1년","홈페이지","­"]
[65,"한국전력기술","기획처","산업 ·중소기업","에너지 및 자원개발","전력산업경쟁력강화및전력수급안정","정보공개 분야 국민의견 수렴 및 만족도 조사 결과","분야(사전정보공표, 정보공개 청구 및 답변 등), 조사기간, 조사대상, 조사결과, 의견수렴 결과 및 개선 내용","기획∙전략","1년","홈페이지","­"]
[66,"한국전력기술","기획처","산업 ·중소기업","에너지 및 자원개발","전력산업경쟁력강화및전력수급안정","수입 및 지출현황","기관 수입 및 지출실적 현황","기획∙전략","1년","홈페이지","해당"]
[67,"한국전력기술","기획처","산업 ·중소기업","에너지 및 자원개발","전력산업경쟁력강화및전력수급안정","사업부서 운영현황","본부/단별 주요 사업부서 운영 목록","기획∙전략","1년","홈페이지","해당"]
[68,"한국전력기술","기획처","산업 ·중소기업","에너지 및 자원개발","전력산업경쟁력강화및전력수급안정","방만경영 정상화 계획","방만경영 개선계획(기존 및 추가과제), 이행완료 여부 공개","기획∙전략","1년","홈페이지","해당"]
[69,"한국전력기술","기획처","산업 ·중소기업","에너지 및 자원개발","전력산업경쟁력강화및전력수급안정","임원현황","성명, 생년, 학력, 주요경력, 임기 등","기획∙전략","1년","홈페이지","해당"]
[70,"한국전력기술","기획처","산업 ·중소기업","에너지 및 자원개발","전력산업경쟁력강화및전력수급안정","정보공개 운영현황","연도별 정보공개 처리건수, 공개비율","기획∙전략","1년","홈페이지","해당"]
[71,"한국전력기술","기획처","산업 ·중소기업","에너지 및 자원개발","전력산업경쟁력강화및전력수급안정","알리오 공시벌점 현황","기재부 알리오 공시 점검결과 ","기획∙전략","1년","홈페이지","해당"]
[72,"한국전력기술","기획처","산업 ·중소기업","에너지 및 자원개발","전력산업경쟁력강화및전력수급안정","중기인력운용 계획","수립개요, 부문별 인력계획","인사∙총무∙회계","1년","홈페이지","­"]
[73,null,"기획처","산업 ·중소기업","에너지 및 자원개발","전력산업경쟁력강화및전력수급안정","회사 주요사업 현황","회사 주요사업 현황(사업명, 발주처, 사업기간, 역무, 예산 등)","기획∙전략","1년","홈페이지"]
[74,"한국전력기술","경영지원처","산업 ·중소기업","에너지 및 자원개발","전력산업경쟁력강화및전력수급안정","부서장 업무추진비성 경비 사용내역","직위, 사용일자, 사용금액, 사용목적, 참석대상","인사∙총무∙회계","1년","홈페이지","­"]
[75,"한국전력기술","경영지원처","산업 ·중소기업","에너지 및 자원개발","전력산업경쟁력강화및전력수급안정","임원(기관장 제외) 업무추진비성 경비 사용내역","직위, 사용일자, 사용금액, 사용목적, 참석대상","인사∙총무∙회계","매월","홈페이지","­"]
[76,"한국전력기술","경영지원처","산업 ·중소기업","에너지 및 자원개발","전력산업경쟁력강화및전력수급안정","기관장 업무추진비성 경비 사용내역","직위, 사용일자, 사용금액, 사용목적, 참석대상","인사∙총무∙회계","매울","홈페이지","해당"]
[77,"한국전력기술","경영지원처","산업 ·중소기업","에너지 및 자원개발","전력산업경쟁력강화및전력수급안정","차량보유현황","차종, 차명, 구입년도, 사용용도","인사∙총무∙회계","1년","홈페이지","해당"]
[78,"한국전력기술","경영지원처","산업 ·중소기업","에너지 및 자원개발","전력산업경쟁력강화및전력수급안정","청사현황 및 시설사용 안내","청사현황(연면적, 층수, 주요시설물, 주차대수, 용도), 시설사용(시설명, 사용가능 시간, 사용료) ","인사∙총무∙회계","1년","홈페이지","­"]
[79,"한국전력기술","경영지원처","산업 ·중소기업","에너지 및 자원개발","전력산업경쟁력강화및전력수급안정","청사 에너지관리 현황","전기, 수도, 가스 등 에너지 사용량, 전년 동월 대비 사용량과 비교, 사용 증감내역, 증감사유","인사∙총무∙회계","1년","홈페이지","­"]
[80,"한국전력기술","경영지원처","산업 ·중소기업","에너지 및 자원개발","전력산업경쟁력강화및전력수급안정","수익시설물 및 이용료 현황","시설물 종류, 명칭, 소재지, 이용료 산정기준, 이용취소 절차 및 환급금액 등","인사∙총무∙회계","1년","홈페이지","­"]
[81,"한국전력기술","경영지원처","산업 ·중소기업","에너지 및 자원개발","전력산업경쟁력강화및전력수급안정","주요자산관리 현황","자산명, 취득일자, 취득원가, 잔존가액, 처분현황 ","인사∙총무∙회계","1년","홈페이지","­"]
[82,"한국전력기술","경영지원처","산업 ·중소기업","에너지 및 자원개발","전력산업경쟁력강화및전력수급안정","사옥 시설물 현황","사옥 시설물 현황","인사∙총무∙회계","1년","홈페이지","해당"]
[83,"한국전력기술","경영지원처","산업 ·중소기업","에너지 및 자원개발","전력산업경쟁력강화및전력수급안정","사옥관리 용역 현황","사옥관리 용역 현황","인사∙총무∙회계","1년","홈페이지","해당"]
[84,"한국전력기술","경영지원처","산업 ·중소기업","에너지 및 자원개발","전력산업경쟁력강화및전력수급안정","사옥 조형물 설치 현황","사옥 조형물 설치 현황","인사∙총무∙회계","1년","홈페이지","해당"]
[85,"한국전력기술","경영지원처","산업 ·중소기업","에너지 및 자원개발","전력산업경쟁력강화및전력수급안정","사옥 신재생에너지 생산 현황","사옥 신재생에너지 생산 현황","인사∙총무∙회계","분기","홈페이지","해당"]
[86,"한국전력기술","경영지원처","산업 ·중소기업","에너지 및 자원개발","전력산업경쟁력강화및전력수급안정","종전부동산(사옥) 매각 현황","종전부동산(사옥) 매각 현황","인사∙총무∙회계","분기","홈페이지","해당","지원업무"]
[87,"한국전력기술","경영지원처","산업 ·중소기업","에너지 및 자원개발","전력산업경쟁력강화및전력수급안정","3년간 요약 재무상태표","3년간 요약 재무상태표","인사∙총무∙회계","1년","홈페이지","해당","지원업무"]
[88,"한국전력기술","경영지원처","산업 ·중소기업","에너지 및 자원개발","전력산업경쟁력강화및전력수급안정","3년간 요약 손익계산서","3년간 요약 손익계산서","인사∙총무∙회계","1년","홈페이지","해당","지원업무"]
[89,"한국전력기술","경영지원처","산업 ·중소기업","에너지 및 자원개발","전력산업경쟁력강화및전력수급안정","세금납부 현항","법인세 납부현황(과세표준, 납부세액), 부가가치세 납부현황(과세표준, 매출세액, 매입세액, 납부세액), 종합부동산세 납부현황(과세표준, 납부세액), 지방세 납부현황(지방세 세목별 납부실적) ","인사∙총무∙회계","1년","홈페이지","­","지원업무"]
[90,"한국전력기술","경영지원처","산업 ·중소기업","에너지 및 자원개발","전력산업경쟁력강화및전력수급안정","법인카드 관리 현황","구분(본사, 사업소 등), 발급개수, 사용제한 시간 및 업종","인사∙총무∙회계","1년","홈페이지","­","지원업무"]
[91,"한국전력기술","경영지원처","산업 ·중소기업","에너지 및 자원개발","전력산업경쟁력강화및전력수급안정","법인카드 포인트 발생 및 사용내역","법인카드 포인트 발생내역(전년도 이월금액, 당해연도 발생금액, 합계금액), 사용내역(일자, 사용금액, 사용처 등)","인사∙총무∙회계","1년","홈페이지","­","지원업무"]
[92,"한국전력기술","경영지원처","산업 ·중소기업","에너지 및 자원개발","전력산업경쟁력강화및전력수급안정","주주총회 개최 현황","주주총회 개최일, 주주총회 안건, 주주총회 결과","인사∙총무∙회계","1년","홈페이지","해당","지원업무"]
[93,"한국전력기술","경영지원처","산업 ·중소기업","에너지 및 자원개발","전력산업경쟁력강화및전력수급안정","제출기관별 공시 실시 현황","한국거래소 및 금융감독원 대상 공시 제출 현황","인사∙총무∙회계","1년","홈페이지","해당","지원업무"]
[94,"한국전력기술","인사노무처","산업 ·중소기업","에너지 및 자원개발","전력산업경쟁력강화및전력수급안정","3년간 신규채용 현황","인원수, 비율","인사∙총무∙회계","반기","홈페이지","해당"]
[95,"한국전력기술","인사노무처","산업 ·중소기업","에너지 및 자원개발","전력산업경쟁력강화및전력수급안정","임원 해외출장 내역","직위, 출장목적, 출장기간, 출장결과 보고서","인사∙총무∙회계","반기","홈페이지","­"]
[96,"한국전력기술","인사노무처","산업 ·중소기업","에너지 및 자원개발","전력산업경쟁력강화및전력수급안정","3년간 직종별 인력현황","인원수, 비율","인사∙총무∙회계","반기","홈페이지","해당"]
[97,"한국전력기술","인사노무처","산업 ·중소기업","에너지 및 자원개발","전력산업경쟁력강화및전력수급안정","3년간 학력별 인력현황","인원수, 비율","인사∙총무∙회계","반기","홈페이지","해당"]
[98,"한국전력기술","인사노무처","산업 ·중소기업","에너지 및 자원개발","전력산업경쟁력강화및전력수급안정","비위면직자 취업제한 제도","제도취지, 취업제한 범위 및 내용 등","인사∙총무∙회계","1년","홈페이지","­"]
[99,"한국전력기술","인사노무처","산업 ·중소기업","에너지 및 자원개발","전력산업경쟁력강화및전력수급안정","채용통계","채용개요, 채용인원, 지원인원, 경쟁률","인사∙총무∙회계","1년","홈페이지","­"]
[100,"한국전력기술","인사노무처","산업 ·중소기업","에너지 및 자원개발","전력산업경쟁력강화및전력수급안정","직원 초과근무수당 지급 내역","부서명, 초과근무시간, 초과근무수당 지급액, 1인당 평균 초과근무시간, 1인당 초과근무수당 지급액 ","인사∙총무∙회계","1년","홈페이지","­"]
[101,"한국전력기술","인사노무처","산업 ·중소기업","에너지 및 자원개발","전력산업경쟁력강화및전력수급안정","3년간 자격별 인력현황","인원수, 비율","인사∙총무∙회계","반기","홈페이지","해당"]
[102,"한국전력기술","인사노무처","산업 ·중소기업","에너지 및 자원개발","전력산업경쟁력강화및전력수급안정","항공마일리지 발생 및 사용 내역","항공마일리지 발생내역(전년도 이월내역, 당해연도 발생내역, 발생내역 합계), 사용내역","인사∙총무∙회계","1년","홈페이지","­"]
[103,"한국전력기술","인사노무처","산업 ·중소기업","에너지 및 자원개발","전력산업경쟁력강화및전력수급안정","개인정보 처리업무 위탁현황","부서명, 수탁기관, 위탁내용","인사∙총무∙회계","1년","홈페이지","­"]
[104,"한국전력기술","인사노무처","산업 ·중소기업","에너지 및 자원개발","전력산업경쟁력강화및전력수급안정","개인정보 제3자 제공현황","수탁자, 이용목적, 항목, 보유(이용)기간","인사∙총무∙회계","1년","홈페이지","­"]
[105,"한국전력기술","인사노무처","산업 ·중소기업","에너지 및 자원개발","전력산업경쟁력강화및전력수급안정","3년간 유연근무 현황","인원수","인사∙총무∙회계","반기","홈페이지","해당"]
[106,"한국전력기술","인사노무처","산업 ·중소기업","에너지 및 자원개발","전력산업경쟁력강화및전력수급안정","대외기관 개인수상 현황","대외기관 개인수상 내역 및 내용 ","인사∙총무∙회계","1년","홈페이지","해당"]
[107,"한국전력기술","인사노무처","산업 ·중소기업","에너지 및 자원개발","전력산업경쟁력강화및전력수급안정","대외 포상 수상내용","포상일시, 포상훈격, 포상대상자, 포상기관, 포상제목","홍보∙대외협력","1년","홈페이지","­"]
[108,"한국전력기술","인사노무처","산업 ·중소기업","에너지 및 자원개발","전력산업경쟁력강화및전력수급안정","노사 협의회 현황","협의회 구성 및 기능, 협의회 운영 방법, 노사협의회 의결사항","법무∙노무","반기","홈페이지","­"]
[109,"한국전력기술","인사노무처","산업 ·중소기업","에너지 및 자원개발","전력산업경쟁력강화및전력수급안정","노동쟁의 현황","노동쟁의 현황","법무∙노무","반기","홈페이지","해당"]
[110,"한국전력기술","인사노무처","산업 ·중소기업","에너지 및 자원개발","전력산업경쟁력강화및전력수급안정","노사협의체 현황","노사 위원 명단, 협의체 수, 수행업무","법무∙노무","1년","홈페이지","해당"]
[111,"한국전력기술","인사노무처","산업 ·중소기업","에너지 및 자원개발","전력산업경쟁력강화및전력수급안정","상급단체 전임 현황","상급단체 전임 취임 여부, 전임자 명단","법무∙노무","1년","홈페이지","해당"]
[112,"한국전력기술","인사노무처","산업 ·중소기업","에너지 및 자원개발","전력산업경쟁력강화및전력수급안정","노동조합 현황","설립일, 조직형태,\n상급단체, 조직도","법무∙노무","1년","홈페이지","해당"]
[113,"한국전력기술","인사노무처","산업 ·중소기업","에너지 및 자원개발","전력산업경쟁력강화및전력수급안정","기금지원사업 운용계획","기금명, 설치개요, 기금지원사업 운용계획(기본방향, 사업내용 등)","인사∙총무∙회계","1년","홈페이지","­"]
[114,"한국전력기술","인사노무처","산업 ·중소기업","에너지 및 자원개발","전력산업경쟁력강화및전력수급안정","기금지원사업 운영현황(실적)","기금지원사업 운영현황(사업명, 지원금액, 지원기준, 지원시기 등)","인사∙총무∙회계","1년","홈페이지","­"]
[115,"한국전력기술","인사노무처","산업 ·중소기업","에너지 및 자원개발","전력산업경쟁력강화및전력수급안정","해외 파견직원 복리후생비 등 지급 내역","파견국가명, 직급, 항목별 복리후생비 지급내역, 기타 지원비 지급내역","인사∙총무∙회계","1년","홈페이지","­"]
[116,"한국전력기술","인사노무처","산업 ·중소기업","에너지 및 자원개발","전력산업경쟁력강화및전력수급안정","기숙사 운영 현황","기숙사 운영 현황","인사∙총무∙회계","분기","홈페이지","해당"]
[117,"한국전력기술","인사노무처","산업 ·중소기업","에너지 및 자원개발","전력산업경쟁력강화및전력수급안정","외부기관 수상현황","수상명, 수상자(이름 블라인드처리), 수상년도, 주관기관","홍보∙대외협력","1년","홈페이지","해당"]
[118,null,"인사노무처","산업 ·중소기업","에너지 및 자원개발","전력산업경쟁력강화및전력수급안정","신입사원 공개채용 경쟁률","당해년도 신입사원 공개채용시 직종별 응시자 수, 합격자 및 경쟁률 현황","인사∙총무∙회계","반기","홈페이지"]
[119,"한국전력기술","계약관리실","산업 ·중소기업","에너지 및 자원개발","전력산업경쟁력강화및전력수급안정","협력업체 행동강령","협력업체 행동강령(청렴서약, 청렴계약, 위반시 제재 등) 내용","계약∙기타","1년","홈페이지","­","지원업무"]
[120,"한국전력기술","계약관리실","산업 ·중소기업","에너지 및 자원개발","전력산업경쟁력강화및전력수급안정","협력업체 포상내역","업체명, 포상내역, 포상사유","계약∙기타","1년","홈페이지","­","지원업무"]
[121,"한국전력기술","계약관리실","산업 ·중소기업","에너지 및 자원개발","전력산업경쟁력강화및전력수급안정","협력업체 상벌심의 결과","업체명, 제재내역(제재명, 제재기간 등), 제재사유","계약∙기타","1년","홈페이지","­","지원업무"]
[122,"한국전력기술","계약관리실","산업 ·중소기업","에너지 및 자원개발","전력산업경쟁력강화및전력수급안정","친환경제품 구매실적","품목, 구매 수량 및 금액, 전체 물품 구매액 대비 비율","계약∙기타","1년","홈페이지","­","지원업무"]
[123,"한국전력기술","계약관리실","산업 ·중소기업","에너지 및 자원개발","전력산업경쟁력강화및전력수급안정","노임단가","엔지니어링 노임단가, 소프트웨어 노임단가","계약∙기타","1년","홈페이지","­","지원업무"]
[124,"한국전력기술","계약관리실","산업 ·중소기업","에너지 및 자원개발","전력산업경쟁력강화및전력수급안정","계약심사 현황","분야(전산, 토목, 건축 등), 유형(공사, 설계변경, 용역, 설비 등), 요청기관, 심사요청액, 심사액, 절감액, 우수사례","계약∙기타","1년","홈페이지","­","지원업무"]
[125,"한국전력기술","계약관리실","산업 ·중소기업","에너지 및 자원개발","전력산업경쟁력강화및전력수급안정","1천만원이상 공사, 용역, 물품 계약 현황(수의계약 제외)","구분(공사, 용역, 물품), 계약명, 계약일자, 계약금액, 계약내역, 낙찰율, 계약업체(업체명, 소재지, 대표자), 담당부서","계약∙기타","반기","홈페이지","­","지원업무"]
[126,"한국전력기술","계약관리실","산업 ·중소기업","에너지 및 자원개발","전력산업경쟁력강화및전력수급안정","500만원 이상 공사, 용역, 물품 수의계약 현황","구분(공사, 용역, 물품), 계약명, 계약일자, 계약금액, 계약내역, 계약업체(업체명, 소재지, 대표자), 수의계약사유, 담당부서","계약∙기타","반기","홈페이지","­","지원업무"]
[127,"한국전력기술","계약관리실","산업 ·중소기업","에너지 및 자원개발","전력산업경쟁력강화및전력수급안정","1억원이상 공사, 용역, 물품 발주계획","구분(공사, 용역, 물품), 명칭, 시기, 물량 및 규모, 도급액, 입찰방법, 담당부서, 전화번호","계약∙기타","분기","홈페이지","­","지원업무"]
[128,"한국전력기술","계약관리실","산업 ·중소기업","에너지 및 자원개발","전력산업경쟁력강화및전력수급안정","사업수행능력평가기준","사업수행능력평가기준","계약∙기타","1년","홈페이지","해당","지원업무"]
[129,"한국전력기술","계약관리실","산업 ·중소기업","에너지 및 자원개발","전력산업경쟁력강화및전력수급안정","사업보유면허관리현황","사업보유면허관리현황","계약∙기타","1년","홈페이지","해당","지원업무"]
[130,"한국전력기술","계약관리실","산업 ·중소기업","에너지 및 자원개발","전력산업경쟁력강화및전력수급안정","용역적격심사기준","용역적격심사기준","계약∙기타","1년","홈페이지","해당","지원업무"]
[131,"한국전력기술","계약관리실","산업 ·중소기업","에너지 및 자원개발","전력산업경쟁력강화및전력수급안정","물품적격심사기준","물품적격심사기준","계약∙기타","1년","홈페이지","해당","지원업무"]
[132,"한국전력기술","계약관리실","산업 ·중소기업","에너지 및 자원개발","전력산업경쟁력강화및전력수급안정","공사적격심사기준","공사적격심사기준","계약∙기타","1년","홈페이지","해당","지원업무"]
[133,"한국전력기술","계약관리실","산업 ·중소기업","에너지 및 자원개발","전력산업경쟁력강화및전력수급안정","입찰평가위원진 구성 및 운영지침","입찰평가위원진 구성 및 운영지침","계약∙기타","1년","홈페이지","해당","지원업무"]
[134,"한국전력기술","계약관리실","산업 ·중소기업","에너지 및 자원개발","전력산업경쟁력강화및전력수급안정","표준수의계약운영업무지침","표준수의계약운영업무지침","계약∙기타","1년","홈페이지","해당","지원업무"]
[135,"한국전력기술","계약관리실","산업 ·중소기업","에너지 및 자원개발","전력산업경쟁력강화및전력수급안정","협상에의한계약운영기준","협상에의한계약운영기준","계약∙기타","1년","홈페이지","해당","지원업무"]
[136,"한국전력기술","계약관리실","산업 ·중소기업","에너지 및 자원개발","전력산업경쟁력강화및전력수급안정","포괄 손해배상보험 가입 현황","계약기간, 보험업체","기획∙전략","1년","홈페이지","해당"]
[137,"한국전력기술","안전보안실","산업 ·중소기업","에너지 및 자원개발","전력산업경쟁력강화및전력수급안정","보안점검 결과","구분(자체점검, 외부기관 점검), 점검일시, 점검대상, 점검결과, 조치결과","인사∙총무∙회계","반기","홈페이지","­","지원업무"]
[138,"한국전력기술","안전보안실","산업 ·중소기업","에너지 및 자원개발","전력산업경쟁력강화및전력수급안정","개인정보 보호방침","개인정보처리 목적, 개인정보 처리 및 보유현황, 제3자제공, 위탁현황, 항목, 파기, 안전성 확보조치, 열람청구방법 등","정보화","1년","홈페이지","­","지원업무"]
[139,"한국전력기술","안전보안실","산업 ·중소기업","에너지 및 자원개발","전력산업경쟁력강화및전력수급안정","개인정보파일 보유현황","명칭, 부서명, 운영근거, 운영목적, 보유기간, 정보주체수","정보화","1년","홈페이지","­","지원업무"]
[140,"한국전력기술","안전보안실","산업 ·중소기업","에너지 및 자원개발","전력산업경쟁력강화및전력수급안정","정보보안경영시스템 인증","인증개요, 인증기관, 인증범위, 인증활동","정보화","1년","홈페이지","해당","지원업무"]
[141,"한국전력기술","안전보안실","산업 ·중소기업","에너지 및 자원개발","전력산업경쟁력강화및전력수급안정","연간보안교육 계획","교육명, 교육내용, 교육대상자, 교육일정","정보화","1년","홈페이지","해당","지원업무"]
[142,"한국전력기술","안전보안실","산업 ·중소기업","에너지 및 자원개발","전력산업경쟁력강화및전력수급안정","개인정보수집 관련 홈페이지 운영 현황","도메인명, 홈페이지명, 고유식별정보 수집, \n운영방식","정보화","1년","홈페이지","해당","지원업무"]
[143,"한국전력기술","안전보안실","산업 ·중소기업","에너지 및 자원개발","전력산업경쟁력강화및전력수급안정","영상정보처리기기(CCTV) 설치,운영 현황","영상정보처리기기(CCTV) 설치 및 운영 현황","정보화","1년","홈페이지","해당","지원업무"]
[144,"한국전력기술","안전보안실","산업 ·중소기업","에너지 및 자원개발","전력산업경쟁력강화및전력수급안정","외부 방문객 출입현황","내국인,외국인 출입현황","정보화","1년","홈페이지","해당","지원업무"]
[145,"한국전력기술","안전보안실","산업 ·중소기업","에너지 및 자원개발","전력산업경쟁력강화및전력수급안정","클린룸 운영 현황","봉인씰, 노트북, CD,USB등 검수현황","정보화","1년","홈페이지","해당","지원업무"]
[146,"한국전력기술","안전보안실","산업 ·중소기업","에너지 및 자원개발","전력산업경쟁력강화및전력수급안정","설계업무용 소프트웨어 등록/폐기 현황","분야별 소프트웨어 등록/폐기 수량","정보화","1년","홈페이지","해당","지원업무"]
[147,"한국전력기술","혁신성장실","산업 ·중소기업","에너지 및 자원개발","전력산업경쟁력강화및전력수급안정","고객상담 Q&A","고객상담 주요질의 및 답변 내용","홍보∙대외협력","1년","홈페이지","­"]
[148,"한국전력기술","혁신성장실","산업 ·중소기업","에너지 및 자원개발","전력산업경쟁력강화및전력수급안정","명예대사 및 홍보대사 운영현황","구분(명예대사, 홍보대사), 성명, 주요경력, 위촉사유, 위촉일, 위촉기간, 활동비 지급내역","홍보∙대외협력","1년","홈페이지","­"]
[149,"한국전력기술","혁신성장실","산업 ·중소기업","에너지 및 자원개발","전력산업경쟁력강화및전력수급안정","정보화사업 추진현황","유형(홈페이지 개발·개편·통합·운영, 콘텐츠 제작 등), 사업명, 사업목적, 사업내용, 사업일정, 관련예산, 담당부서","홍보∙대외협력","1년","홈페이지","­"]
[150,"한국전력기술","혁신성장실","산업 ·중소기업","에너지 및 자원개발","전력산업경쟁력강화및전력수급안정","홍보관, 전시관, 박물관 등 현황","명칭, 소재지, 규모, 주요시설, 운영기간, 운영예산, 인원, 운영시간 및 이용방법","홍보∙대외협력","1년","홈페이지","­"]
[151,"한국전력기술","혁신성장실","산업 ·중소기업","에너지 및 자원개발","전력산업경쟁력강화및전력수급안정","각종 공모전 개최현황","공모전명, 공모기간, 수상내역, 수상작 소개, 담당자, 전화번호","홍보∙대외협력","1년","홈페이지","­"]
[152,"한국전력기술","혁신성장실","산업 ·중소기업","에너지 및 자원개발","전력산업경쟁력강화및전력수급안정","홍보자료 현황","영상 및 인쇄 홍보물, 사보 등","홍보∙대외협력","1년","홈페이지","­"]
[153,"한국전력기술","혁신성장실","산업 ·중소기업","에너지 및 자원개발","전력산업경쟁력강화및전력수급안정","홍보용품 제작 현황","제품명, 단가, 수량, 제작금액, 납품일자, 납품업체(대표자, 소재지 등), 배부부서 및 활용목적","홍보∙대외협력","1년","홈페이지","­"]
[154,"한국전력기술","혁신성장실","산업 ·중소기업","에너지 및 자원개발","전력산업경쟁력강화및전력수급안정","광고비 집행현황","광고매체명, 기간 및 방법, 집행액","홍보∙대외협력","1년","홈페이지","­"]
[155,"한국전력기술","혁신성장실","산업 ·중소기업","에너지 및 자원개발","전력산업경쟁력강화및전력수급안정","국내 전시회 운영 실적","국내 전시회 운영 횟수 등","홍보∙대외협력","1년","홈페이지","해당"]
[156,"한국전력기술","혁신성장실","산업 ·중소기업","에너지 및 자원개발","전력산업경쟁력강화및전력수급안정","국외 전시회 운영 실적","국외 전시회 운영 횟수 등","홍보∙대외협력","1년","홈페이지","해당"]
[157,"한국전력기술","혁신성장실","산업 ·중소기업","에너지 및 자원개발","전력산업경쟁력강화및전력수급안정","SNS 운영 실적","공식 facebook 게시 횟수 등","홍보∙대외협력","1년","홈페이지","해당"]
[158,"한국전력기술","혁신성장실","산업 ·중소기업","에너지 및 자원개발","전력산업경쟁력강화및전력수급안정","홈페이지 뉴스레터 현황","홈페이지 뉴스레터 수신자 수 등","홍보∙대외협력","1년","홈페이지","해당"]
[159,"한국전력기술","혁신성장실","산업 ·중소기업","에너지 및 자원개발","전력산업경쟁력강화및전력수급안정","언론보도 자료 리스트","회사 보도자료 목록 등","홍보∙대외협력","1년","홈페이지","해당"]
[160,"한국전력기술","혁신성장실","산업 ·중소기업","에너지 및 자원개발","전력산업경쟁력강화및전력수급안정","캘린더 제작 부수","회사 달력 제작 수량, 업체 등","홍보∙대외협력","1년","홈페이지","해당"]
[161,"한국전력기술","혁신성장실","산업 ·중소기업","에너지 및 자원개발","전력산업경쟁력강화및전력수급안정","광고이미지 제작 현황","회사광고 이미지, 제작횟수 등","홍보∙대외협력","1년","홈페이지","해당"]
[162,"한국전력기술","혁신성장실","산업 ·중소기업","에너지 및 자원개발","전력산업경쟁력강화및전력수급안정","회사 홈페이지 방문자 현황","월별 회사 홈페이지 방문자 수 현황 등","홍보∙대외협력","1년","홈페이지","해당"]
[163,"한국전력기술","혁신성장실","산업 ·중소기업","에너지 및 자원개발","전력산업경쟁력강화및전력수급안정","사회적 기업 지원현황","지원대상(기업명, 기업소개 등), 지원내용","인사∙총무∙회계","1년","홈페이지","­"]
[164,"한국전력기술","혁신성장실","산업 ·중소기업","에너지 및 자원개발","전력산업경쟁력강화및전력수급안정","중소기업 제품 구매실적","품목, 구매 수량 및 금액, 전체 물품 구매액 대비 비율","계약∙기타","1년","홈페이지","­"]
[165,"한국전력기술","혁신성장실","산업 ·중소기업","에너지 및 자원개발","전력산업경쟁력강화및전력수급안정","장애인 생산품 구매실적","품목, 구매 수량 및 금액, 전체 물품 구매액 대비 비율","계약∙기타","1년","홈페이지","­"]
[166,"한국전력기술","혁신성장실","산업 ·중소기업","에너지 및 자원개발","전력산업경쟁력강화및전력수급안정","미래인재육성기반 사업","장학금 대상","기술∙교육∙품질","1년","홈페이지","해당"]
[167,"한국전력기술","혁신성장실","산업 ·중소기업","에너지 및 자원개발","전력산업경쟁력강화및전력수급안정","이전지역 협력강화","지자체 봉사활동 행사 참여현황","홍보∙대외협력","분기","홈페이지","해당"]
[168,"한국전력기술","혁신성장실","산업 ·중소기업","에너지 및 자원개발","전력산업경쟁력강화및전력수급안정","사회공헌 활동 현황","계기(명절, 연말, 국군장병 위문, 기타 등), 지원일자, 지원대상, 지원내역, 지원금액, 재원조달(임직원 모금, 예산 등)","홍보∙대외협력","반기","홈페이지","­"]
[169,"한국전력기술","혁신성장실","산업 ·중소기업","에너지 및 자원개발","전력산업경쟁력강화및전력수급안정","지역사회 공헌사업 현황","사업명, 사업내용, 관련예산, 추진 경과 및 계획","홍보∙대외협력","반기","홈페이지","­"]
[170,"한국전력기술","혁신성장실","산업 ·중소기업","에너지 및 자원개발","전력산업경쟁력강화및전력수급안정","임직원 행동강령 및 지침","임직원 행동강령 및 지침 내용","감사∙윤리","1년","홈페이지","­"]
[171,"한국전력기술","혁신성장실","산업 ·중소기업","에너지 및 자원개발","전력산업경쟁력강화및전력수급안정","청렴계약 및 윤리서약","임원 직무청렴계약 및 직원 윤리서약 현황","감사∙윤리","1년","홈페이지","­"]
[172,"한국전력기술","혁신성장실","산업 ·중소기업","에너지 및 자원개발","전력산업경쟁력강화및전력수급안정","청렴교육 현황","청렴교육 시행 내역(일시, 장소, 교육내용 등), 참석인원, 기관장 및 임원 참석여부","감사∙윤리","1년","홈페이지","­"]
[173,"한국전력기술","혁신성장실","산업 ·중소기업","에너지 및 자원개발","전력산업경쟁력강화및전력수급안정","청렴마일리지 운영 현황","개요, 운영기간, 지표, 인센티브, 운영결과","감사∙윤리","1년","홈페이지","­"]
[174,"한국전력기술","혁신성장실","산업 ·중소기업","에너지 및 자원개발","전력산업경쟁력강화및전력수급안정","성희롱 예방교육 현황","성희롱 예방교육 시행 내역(일시, 교육방법, 교육내용 등), 참석인원, 기관장 및 임원 참석여부","감사∙윤리","1년","홈페이지","­"]
[175,null,"혁신성장실","산업 ·중소기업","에너지 및 자원개발","전력산업경쟁력강화및전력수급안정","인권경영헌장","한국전력기술 인권경영 헌장","감사∙윤리","1년","홈페이지"]
[176,"한국전력기술","혁신성장실","산업 ·중소기업","에너지 및 자원개발","전력산업경쟁력강화및전력수급안정","상품권 구입 및 배부 현황","구입일자, 종류, 구입금액, 구입목적, 배부처, 배부금액","계약∙기타","매월","홈페이지"]
[177,"한국전력기술","법무총괄반","산업 ·중소기업","에너지 및 자원개발","전력산업경쟁력강화및전력수급안정","진행중인 민사소송현황","구분(행정, 민사), 사건명","법무∙노무","1년","홈페이지","­","지원업무"]
[178,"한국전력기술","법무총괄반","산업 ·중소기업","에너지 및 자원개발","전력산업경쟁력강화및전력수급안정","종결된 소송현황","구분(행정, 민사), 사건명","법무∙노무","1년","홈페이지","해당","지원업무"]
[179,"한국전력기술","법무총괄반","산업 ·중소기업","에너지 및 자원개발","전력산업경쟁력강화및전력수급안정","진행중인 지적재산권 분쟁 현황","구분(분쟁,소송,민원), 사건명, 처리결과 등","법무∙노무","1년","홈페이지","해당","지원업무"]
[180,"한국전력기술","법무총괄반","산업 ·중소기업","에너지 및 자원개발","전력산업경쟁력강화및전력수급안정","진행중인 행정소송 현황","구분(피소,제소), 사건명, 처리결과 등","법무∙노무","1년","홈페이지","해당","지원업무"]
[181,"한국전력기술","법무총괄반","산업 ·중소기업","에너지 및 자원개발","전력산업경쟁력강화및전력수급안정","진행중인 형사소송 현황","구분(고발,피고발), 사건명, 처리결과 등","법무∙노무","1년","홈페이지","해당","지원업무"]
[182,"한국전력기술","법무총괄반","산업 ·중소기업","에너지 및 자원개발","전력산업경쟁력강화및전력수급안정","사내변호사 인력현황","구분(국내, 외국), 인원수","법무∙노무","1년","홈페이지","해당","지원업무"]
[183,"한국전력기술","법무총괄반","산업 ·중소기업","에너지 및 자원개발","전력산업경쟁력강화및전력수급안정","사내변호사 직무교육 현황","교육명, 교육일정, 참여인원","법무∙노무","1년","홈페이지","해당","지원업무"]
[184,"한국전력기술","법무총괄반","산업 ·중소기업","에너지 및 자원개발","전력산업경쟁력강화및전력수급안정","법무역량 교육 현황","구분(사내, 외부), 교육명, 참여인원","법무∙노무","1년","홈페이지","해당","지원업무"]
[185,"한국전력기술","법무총괄반","산업 ·중소기업","에너지 및 자원개발","전력산업경쟁력강화및전력수급안정","외부 변호사 운영현황","법률고문명(법무법인 및 개인), 위촉기간","법무∙노무","1년","홈페이지","­"]
[186,"한국전력기술","법무총괄반","산업 ·중소기업","에너지 및 자원개발","전력산업경쟁력강화및전력수급안정","기관 관련 주요 법령\n- 민사/상사 등 경영일반 관련 주요법령","법, 시행령, 시행규칙 등","법무∙노무","1년","홈페이지","-","지원업무"]
[187,"한국전력기술","(원자력)원전안전센터","산업 ·중소기업","에너지 및 자원개발","전력산업경쟁력강화및전력수급안정","원전 안전관련기기 내진검증현황","내진검증대상 기기목록, 검증방법, 검증문서현황","기술∙교육∙품질","분기","홈페이지","해당","고유업무"]
[188,"한국전력기술","(원자력)원전안전센터","산업 ·중소기업","에너지 및 자원개발","전력산업경쟁력강화및전력수급안정","원전 안전관련기기 내환경검증현황","내환경검증대상 기기목록, 검증방법, 검증문서현황","기술∙교육∙품질","분기","홈페이지","해당","고유업무"]
[189,"한국전력기술","(원자력)원자력사업관리실","산업 ·중소기업","에너지 및 자원개발","전력산업경쟁력강화및전력수급안정","국내외 원자력 현장파견인력 현황(A/E)","파견지, 수행사업, 파견인원 등","인사∙총무∙회계","반기","홈페이지","해당","고유업무"]
[190,"한국전력기술","(원자력)원자력사업관리실","산업 ·중소기업","에너지 및 자원개발","전력산업경쟁력강화및전력수급안정","본부별 주요 계획\n- 원자력본부 주요 계획","본부명, 사업개요, 주요내용, 주요 추진계획","기획∙전략","1년","홈페이지","­","지원업무"]
[191,"한국전력기술","(원자력)원자력사업관리실","산업 ·중소기업","에너지 및 자원개발","전력산업경쟁력강화및전력수급안정","기관 관련 주요 법령\n- 원자력 관련 주요법령","법, 시행령, 시행규칙 등","법무∙노무","1년","홈페이지","­","지원업무"]
[192,"한국전력기술","(원자력)원자력사업관리실","산업 ·중소기업","에너지 및 자원개발","전력산업경쟁력강화및전력수급안정","원자력발전 노형별 이해","노형별 조감도, 절개도, 차이점 등","기술∙교육∙품질","1년","홈페이지","해당","고유업무"]
[193,"한국전력기술","(원자력)원자력사업처","산업 ·중소기업","에너지 및 자원개발","전력산업경쟁력강화및전력수급안정","원자력관련 학술단체 회원등록 현황 ","원자력 학술단체 현황, 우리회사가 회원사로 참여중인 학술단체 목록, 참여 학술활동 현황","기술∙교육∙품질","반기","홈페이지","해당","지원업무"]
[194,"한국전력기술","(원자력)원자력사업처","산업 ·중소기업","에너지 및 자원개발","전력산업경쟁력강화및전력수급안정","원전신흥도입국 지원현황","원전신흥도입국 현황, 지원업무(행사명 등) 사례","홍보∙대외협력","반기","홈페이지","해당","고유업무"]
[195,"한국전력기술","(원자력)원자력사업처","산업 ·중소기업","에너지 및 자원개발","전력산업경쟁력강화및전력수급안정","세계 원자력산업 동향","국가별 소식, 업체별 소식, 국제기구 소식, 신규원전 발주전망, 기술개발 현황","홍보∙대외협력","1년","홈페이지","해당","고유업무"]
[196,"한국전력기술","(원자력)원자력사업처","산업 ·중소기업","에너지 및 자원개발","전력산업경쟁력강화및전력수급안정","원자력본부 소개자료(국외용)","조직도,인력현황, 주요 사업개요","홍보∙대외협력","1년","홈페이지","해당","고유업무"]
[197,"한국전력기술","(원자력)원자력사업처","산업 ·중소기업","에너지 및 자원개발","전력산업경쟁력강화및전력수급안정","지사 및 연락사무소 현황","위치, 지사장/소장 성명 및 연락처 ","홍보∙대외협력","1년","홈페이지","해당","고유업무"]
[198,"한국전력기술","(원자력)기계배관기술실","산업 ·중소기업","에너지 및 자원개발","전력산업경쟁력강화및전력수급안정","원자력발전의 원리(BOP중심)","경수로, 중수로","기술∙교육∙품질","1년","홈페이지","해당","고유업무"]
[199,"한국전력기술","(신)신사업관리실","산업 ·중소기업","에너지 및 자원개발","전력산업경쟁력강화및전력수급안정","국내외 플랜트분야 현장파견 인력 현황","파견지, 수행사업, 파견인원 등","인사∙총무∙회계","반기","홈페이지","해당","고유업무"]
[200,"한국전력기술","(신)신사업관리실","산업 ·중소기업","에너지 및 자원개발","전력산업경쟁력강화및전력수급안정","본부별 주요 계획\n- 에너지신사업본부 주요 계획","본부명, 사업개요, 주요내용, 주요 추진계획","기획∙전략","1년","홈페이지","­","지원업무"]
[201,"한국전력기술","(신)신사업관리실","산업 ·중소기업","에너지 및 자원개발","전력산업경쟁력강화및전력수급안정","기관 관련 주요 법령\n- 수화력, 신재생 관련 주요법령","법, 시행령, 시행규칙 등","법무∙노무","1년","홈페이지","­","지원업무"]
[202,"한국전력기술","(신)신사업개발처","산업 ·중소기업","에너지 및 자원개발","전력산업경쟁력강화및전력수급안정","한기수행 1,000MW급 석탄화력발전소 설계능력의 국내외 홍보를 위한 영문 소개서 제작","소개서 구성","홍보∙대외협력","1년","홈페이지","해당","고유업무"]
[203,"한국전력기술","(신)신사업개발처","산업 ·중소기업","에너지 및 자원개발","전력산업경쟁력강화및전력수급안정","에너지신사업본부 소개자료(국외용)","조직도,인력현황, 주요 사업개요","홍보∙대외협력","1년","홈페이지","해당","고유업무"]
[204,"한국전력기술","(신)신사업개발처","산업 ·중소기업","에너지 및 자원개발","전력산업경쟁력강화및전력수급안정","지사 및 연락사무소 현황","위치, 지사장/소장 성명 및 연락처 ","홍보∙대외협력","1년","홈페이지","해당","고유업무"]
[205,"한국전력기술","(신)신사업개발처","산업 ·중소기업","에너지 및 자원개발","전력산업경쟁력강화및전력수급안정","국내 EPCM모델 사업 발굴 및 수행","개요, 사업특성, 사업수행효과","홍보∙대외협력","1년","홈페이지","해당","고유업무"]
[206,"한국전력기술","(신)기계배관환경기술실","산업 ·중소기업","에너지 및 자원개발","전력산업경쟁력강화및전력수급안정","석탄화력발전의 원리","발전원리, 적용 발전소","기술∙교육∙품질","1년","홈페이지","해당","고유업무"]
[207,"한국전력기술","(신)기계배관환경기술실","산업 ·중소기업","에너지 및 자원개발","전력산업경쟁력강화및전력수급안정","복합화력발전의 원리","발전원리, 적용 발전소","기술∙교육∙품질","1년","홈페이지","해당","고유업무"]
[208,"한국전력기술","(신)기계배관환경기술실","산업 ·중소기업","에너지 및 자원개발","전력산업경쟁력강화및전력수급안정","신재생발전의 원리(풍력, IGCC)","발전원리, 적용 발전소","기술∙교육∙품질","1년","홈페이지","해당","고유업무"]
[209,"한국전력기술","(원자로)원자로사업관리실","산업 ·중소기업","에너지 및 자원개발","전력산업경쟁력강화및전력수급안정","국내외 원자력 현장파견 인력 현황(NSSS)","파견지, 수행사업, 파견인원 등","인사∙총무∙회계","반기","홈페이지","해당","고유업무"]
[210,"한국전력기술","(원자로)원자로사업관리실","산업 ·중소기업","에너지 및 자원개발","전력산업경쟁력강화및전력수급안정","본부별 주요 계획\n- 원자로설계개발단 주요 계획","본부명, 사업개요, 주요내용, 주요 추진계획","기획∙전략","1년","홈페이지","­","지원업무"]
[211,"한국전력기술","(원자로)유체계통설계그룹","산업 ·중소기업","에너지 및 자원개발","전력산업경쟁력강화및전력수급안정","원자력발전의 원리(NSSS중심)","경수로, 중수로","기술∙교육∙품질","1년","홈페이지","해당","고유업무"]
[212,"한국전력기술","해당부서\n(각 사업본부 사업개발담당부서)","산업 ·중소기업","에너지 및 자원개발","전력산업경쟁력강화및전력수급안정","해외기관 MOU 체결 현황","국가명, 기관명, 체결일자, 명칭, 내용, 향후 추진계획 ","홍보∙대외협력","반기","홈페이지","­","지원업무"]
[213,"한국전력기술","해당부서\n(각 사업본부 사업개발담당부서)","산업 ·중소기업","에너지 및 자원개발","전력산업경쟁력강화및전력수급안정","국제회의 참여 및 역할","회의명칭, 회의개요, 참석자, 주요참여 국가 및 기관, 회의결과 및 추진계획","홍보∙대외협력","반기","홈페이지","­","지원업무"]
[214,"한국전력기술","해당부서\n(사업관리실)","산업 ·중소기업","에너지 및 자원개발","전력산업경쟁력강화및전력수급안정","단위 주요사업 목록\n(전력수급계획 사업대상)","단위 주요사업명, 분류체계, 단위사업 설명, 부서명, 보존기간, 보존기간 책정사유","기술∙교육∙품질","반기","홈페이지","­","지원업무"]
[215,"한국전력기술","해당부서\n(사업관리실)","산업 ·중소기업","에너지 및 자원개발","전력산업경쟁력강화및전력수급안정","총사업비 500억원 이상의 예비타당성 조사 대상사업 및 조사결과","사업명, 사업기간, 사업내용, 총사업비, 예비타당성 조사기관, 조사결과, 사업착수 여부","계약∙기타","1년","홈페이지","­","지원업무"]
[216,"한국전력기술","해당부서\n(사업관리실)","산업 ·중소기업","에너지 및 자원개발","전력산업경쟁력강화및전력수급안정","공사, 용역, 물품 대가에 대한 1년 1억원 이상 지급 현황","구분(공사, 용역, 물품), 계약명, 계약일, 종료일, 계약금액, 기성금, 준공금, 지급대상업체(업체명, 소재지, 대표자), 담당부서","계약∙기타","1년","홈페이지","­","지원업무"]
[217,"한국전력기술","해당부서\n(사업관리실)","산업 ·중소기업","에너지 및 자원개발","전력산업경쟁력강화및전력수급안정","대규모(100억원 이상) 공사정보","사업명, 사업내역, 예산, 추진실적 및 계획, 담당부서, 전화번호","계약∙기타","반기","홈페이지","­","지원업무"]